Workbook

Sheet INPUT DATA
A1: BcChart v2.1
A2: ©2018 Mitja Košir & Luka Pajek
A4: BASIC DATA | D4: For more information see About.
J6: Insert latitude and longitude in decimal degrees format (DDD.DDD), negative values for S and W.
A7: Location | D7: Country | G7: Elevation | J7: Latitude | K7: 45 | M7: Longitude | N7: -8.894
A9: CLIMATE DATA
A11: Climatological period | C11: 2007-2016
C13: automatically filled data
B14: Tavg | C14: Tmaxavg | D14: Tminavg | E14: RHminavg | F14: RHmaxavg | G14: Grad,avg | H14: Grad,max | I14: IRAD | J14: HDD | K14: CDD
B15: (°C) | C15: (°C) | D15: (°C) | E15: (%) | F15: (%) | G15: W/m2 | H15: W/m2 | I15: (kWh/m2/day) | J15: (Kday) | K15: (Kday)
A16: JAN | B16: =(C16+D16)/2 -> 12.28741935 | C16: ='Data call'!S4 -> 12.8816129 | D16: ='Data call'!R4 -> 11.69322581 | E16: ='Data call'!T4 -> 73.81193548 | F16: ='Data call'!U4 -> 85.05193548 | G16: ='Data call'!V4 -> 136.9734543 | H16: ='Data call'!W4 -> 231.625 | I16: 1.23 | J16: 307.6666667 | K16: 0
A17: FEB | B17: =(C17+D17)/2 -> 10.42553571 | C17: ='Data call'!S5 -> 11.13071429 | D17: ='Data call'!R5 -> 9.720357143 | E17: ='Data call'!T5 -> 71.68821429 | F17: ='Data call'!U5 -> 85.78678571 | G17: ='Data call'!V5 -> 196.0559524 | H17: ='Data call'!W5 -> 357.1 | I17: 2.23 | J17: 229.6666667 | K17: 0
A18: MAR | B18: 11.4616129 | C18: ='Data call'!S6 -> 12.06903226 | D18: ='Data call'!R6 -> 10.85419355 | E18: ='Data call'!T6 -> 72.90580645 | F18: ='Data call'!U6 -> 85.95225806 | G18: ='Data call'!V6 -> 274.5827957 | H18: ='Data call'!W6 -> 415.5454545 | I18: 3.64 | J18: 167 | K18: 0
A19: APR | B19: 13.14383333 | C19: ='Data call'!S7 -> 13.63033333 | D19: ='Data call'!R7 -> 12.65733333 | E19: ='Data call'!T7 -> 78.84466667 | F19: ='Data call'!U7 -> 87.03033333 | G19: ='Data call'!V7 -> 423.7550611 | H19: ='Data call'!W7 -> 525.9166667 | I19: 4.73 | J19: 92.66666667 | K19: 0
A20: MAY | B20: 13.24612903 | C20: ='Data call'!S8 -> 13.75387097 | D20: ='Data call'!R8 -> 12.7383871 | E20: ='Data call'!T8 -> 75.61677419 | F20: ='Data call'!U8 -> 85.61387097 | G20: ='Data call'!V8 -> 418.1463134 | H20: ='Data call'!W8 -> 571.0714286 | I20: 5.98 | J20: 36.66666667 | K20: 3.333333333
A21: JUN | B21: 15.596 | C21: ='Data call'!S9 -> 16.209 | D21: ='Data call'!R9 -> 14.983 | E21: ='Data call'!T9 -> 79.48233333 | F21: ='Data call'!U9 -> 89.85133333 | G21: ='Data call'!V9 -> 414.8673016 | H21: ='Data call'!W9 -> 577.7142857 | I21: 6.44 | J21: 5 | K21: 31.66666667
A22: JUL | B22: 16.66612903 | C22: ='Data call'!S10 -> 17.18354839 | D22: ='Data call'!R10 -> 16.14870968 | E22: ='Data call'!T10 -> 77.90129032 | F22: ='Data call'!U10 -> 88.65903226 | G22: ='Data call'!V10 -> 390.6991935 | H22: ='Data call'!W10 -> 595.6428571 | I22: 6.76 | J22: 0.6666666667 | K22: 62.66666667
A23: AUG | B23: 18.64693548 | C23: ='Data call'!S11 -> 19.04645161 | D23: ='Data call'!R11 -> 18.24741935 | E23: ='Data call'!T11 -> 76.22741935 | F23: ='Data call'!U11 -> 86.86903226 | G23: ='Data call'!V11 -> 418.500257 | H23: ='Data call'!W11 -> 542.9285714 | I23: 5.71 | J23: 2 | K23: 48.33333333
A24: SEP | B24: 19.41633333 | C24: ='Data call'!S12 -> 19.79333333 | D24: ='Data call'!R12 -> 19.03933333 | E24: ='Data call'!T12 -> 82.61633333 | F24: ='Data call'!U12 -> 88.38166667 | G24: ='Data call'!V12 -> 326.0219697 | H24: ='Data call'!W12 -> 476.9166667 | I24: 4.13 | J24: 16.33333333 | K24: 12.66666667
A25: OCT | B25: 16.34725806 | C25: ='Data call'!S13 -> 16.77516129 | D25: ='Data call'!R13 -> 15.91935484 | E25: ='Data call'!T13 -> 75.99354839 | F25: ='Data call'!U13 -> 85.11 | G25: ='Data call'!V13 -> 252.8315086 | H25: ='Data call'!W13 -> 378.4545455 | I25: 2.53 | J25: 80.33333333 | K25: 0
A26: NOV | B26: 14.3885 | C26: ='Data call'!S14 -> 15.22866667 | D26: ='Data call'!R14 -> 13.54833333 | E26: ='Data call'!T14 -> 70.441 | F26: ='Data call'!U14 -> 85.108 | G26: ='Data call'!V14 -> 150.0027778 | H26: ='Data call'!W14 -> 269.1111111 | I26: 1.39 | J26: 169.6666667 | K26: 0
A27: DEC | B27: 11.78903226 | C27: ='Data call'!S15 -> 12.58903226 | D27: ='Data call'!R15 -> 10.98903226 | E27: ='Data call'!T15 -> 69.56419355 | F27: ='Data call'!U15 -> 82.92935484 | G27: ='Data call'!V15 -> 131.4233871 | H27: ='Data call'!W15 -> 220.625 | I27: 1.05 | J27: 325 | K27: 0
A29: Personal notes

Sheet BIOCLIMATIC CHART
A1: BcChart v2.1
A2: ©2018 Mitja Košir & Luka Pajek
A4: BIOCLIMATIC CHART | F4: For more information see About.
E47: Passive solutions indicated on the bioclimatic chart | M47: Info
I49: Passive solar heating (PSH) | M49: Location | O49: ='INPUT DATA'!B7&" "&INDEX('Country List'!C2:C250,MATCH('INPUT DATA'!E7,Countrylist,0),0) -> 
I51: Natural ventilation | M51: Coordinates | O51: ='INPUT DATA'!K7&" "&'INPUT DATA'!N7 -> 45 -8.894
I53: High thermal mass | M53: Elevation | O53: ='INPUT DATA'!H7&" m" -> m
I55: Direct evaporative cooling | M55: Climatological period | O55: ='INPUT DATA'!C11 -> 2007-2016
I57: High thermal mass & night ventilation
I59: Indirect evaporative cooling

Sheet BIOCLIMATIC POTENTIAL ANALYSIS
A1: BcChart v2.1
A2: ©2018 Mitja Košir & Luka Pajek
A4: BIOCLIMATIC POTENTIAL ANALYSIS | G4: For more information see About.
F6: BC potential
F7: (%)
B9: =F15+F17+F13+F11+F9 -> -1.495317977e-15 | C9: Sh | F9: ='Calculation help'!O61 -> -1.495317977e-15 | G9: Q | H9: Mechanical cooling and/or dehumidification needed
B11: SHADING NEEDED | F11: ='Calculation help'!O62 -> 0 | G11: A | H11: Potential for passive solutions for hot arid climates
F13: ='Calculation help'!O63 -> 0 | G13: M | H13: Natural ventilation and/or high thermal mass needed
F15: ='Calculation help'!O64 -> 0 | G15: V | H15: Natural ventilation needed
F17: ='Calculation help'!O65 -> 0 | G17: CSh | H17: Comfort achieved by shading
F19: ='Calculation help'!O66 -> 6.996114544 | G19: CSn | H19: Comfort achieved by solar irradiation
F21: COMFORT ZONE | J21: =F17+F19 -> 6.996114544 | K21: Cz
B23: SUN NEEDED | F23: ='Calculation help'!O67 -> 74.97843248 | G23: R | H23: Potential for passive solar heating
B25: =F19+F23+F25 -> 100 | C25: Sn | F25: ='Calculation help'!O68 -> 18.02545298 | G25: H | H25: No potential for passive solar heating
B28: Info
B30: Location | F30: ='INPUT DATA'!B7&" "&INDEX('Country List'!C2:C250,MATCH('INPUT DATA'!E7,Countrylist,0),0) -> 
B32: Coordinates | F32: ='INPUT DATA'!K7&" "&'INPUT DATA'!N7 -> 45 -8.894
B34: Elevation | F34: ='INPUT DATA'!H7 -> 0
B36: Climatological period | F36: ='INPUT DATA'!C11 -> 2007-2016
B38: Personal notes
B39: =IF('INPUT DATA'!A30=0," ",'INPUT DATA'!A30) -> 

Sheet ABOUT
A1: BcChart v2.1
A2: ©2018 Mitja Košir & Luka Pajek
A4: ABOUT
A6: Authors | O6: Copyright & Therms of use
A8: Assist. Prof. | B8: Mitja Košir, PhD | D8: E: | E8: mitja.kosir@fgg.uni-lj.si | H8: T: | I8: +386 1 47 68 595 | K8: F: | L8: +386 1 42 50 681
A9: Assist. | B9: Luka Pajek | D9: E: | E9: luka.pajek@fgg.uni-lj.si | H9: T: | I9: +386 1 47 68 609 | K9: F: | L9: +386 1 42 50 681
B11: University of Ljubljana | H11: W: | I11: https://www.uni-lj.si/ | P11: The BcChart software can be used under the Creative Commons Attribution-NonCommercial-NoDerivatives license. For commercial use please contact the authors.
B12: Faculty of Civil and Geodetic Engineering | H12: W: | I12: https://www.fgg.uni-lj.si/
B13: Chair of Buildings and Constructional Complexes | H13: W: | I13: http://kske.fgg.uni-lj.si/en/ | P13: The results of the BcChart software are informative and should be used as such. The authors do not guarantee for the accuracy of the calculations and do not take the responsibility for the content.
B14: Jamova cesta 2
B15: 1000 Ljubljana | P15: Please contact the authors, if you have any questions, problems or suggestions while using this software.
B16: Slovenia
A18: THEORETICAL BACKGROUND
A20: Description of the performed calculations:
A22: Bioclimatic evaluation is the starting point for any architectural design aiming at environmental climate balance. The biclimatic chart shows the comfort zone in the centre of the plot area. The bioclimatic elements around it indicate the nature of corrective measures necessary to restore the feeling of comfort at any point outside the comfort zone. Any climatic condition determined by its dry-bulb air temperature and relative humidity can be plotted on the chart. If the plotted point falls into the comfort zone, we feel comfortable in shade. If the point falls outside the comfort zone, corrective measures are needed. A majority of these measures may be achieved by natural means, that is, by adapting architectural design to utilize the climatic elements. Other problems, which fall outside the natural possibilities, will have to be remedied by mechanical means, such as air conditioning (heating, cooling, dehumidification).
B25: Figure 1. Example of a simplified original (a) and modified (b) bioclimatic chart plot for months 1, 2 and 3 and the corresponding values of particular period lengths (xc1, x’c1, xr1, x’r1, xw2, etc.). Tmax,2 cannot be increased by ∆T2, since the time of being in comfort zone would be reduced (Tmax,2 > T*max,lim). In such case x’c2 and x’r2 are the same as xc2 and xr2, respectively.
A27: The modified bioclimatic chart is configured on the basis of the actually received solar irradiance at the exact location, effecting the human body’s perception of thermal environment. The modified bioclimatic chart is configured on the basis of the actually received solar irradiance at the exact location, affecting the human body’s perception of thermal environment. Thus, the substitutive daily comfortable dry-bulb air temperature for month i (i = 1–12 or January–December), Tsub,i, which would completely satisfy the human thermal comfort needs, is introduced and calculated with the folowing equations:
A33: The first equation is based on the equations for human body thermal equilibrium, presented by Olgyay. Tsub,i is the substitutive daily comfortable dry-bulb air temperature for month i in °C, Ts is comfortable skin temperature, presumed as 33.9 °C, M is the observed rate of metabolism 126 W, E is the rate of cooling due to perspiration actually evaporated 38 W, Ri is radiation in W for month i, Gi is the mean daily global solar irradiance in W/m2 for month i, Se is the effective radiation area for a given subject in a given position and it is assumed as 0.5 m2, α is the absorptivity of the radiated surface of clothed man. Clo/c + V.Clo/c is clothing insulation and air effect on clothing coefficient (0.28) as defined by Olgyay and adapted to be expressed in m2K/W. S is the mean body surface area of clothed man, assumed as 2.14 m2 and Sc is the fraction of surface areas exposed to radiation and convection (0.9).
A35: Next, the decrement of comfortable dry-bulb temperature ∆Ti is calculated as a difference between the lowest temperature of comfort zone (21 °C) and the calculated Tsub,i.
A39: Decrement ∆Ti is then added to the maximum value of Tmax,i for every distinctive month to simulate the shift of comfort zone towards Tsub,i and the new maximum dry-bulb air temperature is determined (T*max,i). The result of the latter is also a deformation of line length, presented in Figure 1.
A43: However, the upper limit for T*max,i, denominated as T*max,lim is defined by the upper limit of the comfort zone, as described with equation preseted below. Values below 18% and above 77% of relative humidity are out of the comfort zone. In such cases, the Tmax,i value is not modified.
A48: In order to evaluate the time, when the available solar irradiance potential at a specific location is insufficient (conventional heating is necessary), a TPSH,i is calculated on the basis of maximal daily global solar irradiance on the horizontal plane for each month (Gmax,i), and the corresponding dry-bulb air temperature at which the passive solar heating (PSH) is still possible. All the values on the bioclimatic chart below that temperature represent the time, when PSH cannot be used as an efficient passive strategy, since there is not enough solar energy available at a given analysed location. For this purpose the folowing two equations are used: although instead of the mean daily global solar irradiance (Gi), the maximal values were used (Gmax,i) (Equations 6 and 7).
A54: Where instead of the mean daily global solar irradiance (Gi), the maximal values were used (Gmax,i).
A56: Weather data
A58: The weather data, which is automatically called in the Data section is delivered by Photovoltaic Geographical Information System (PVGIS) Interface for accessing data and calculations (Typical Meteorological Year data for building energy performance calculations) provided by the European Commission. Currently, the weather data is only available for Europe, Asia and Africa and for the latitudes below 60° N. All the other data have to be manually filled.
A60: PVGIS5 website: | C60: http://re.jrc.ec.europa.eu/pvgis.html
A62: Bioclimatic potential evaluation:
A64: To evaluate the time of each month in a year, when the plotted combinations of dry-bulb air temperature, relative humidity and solar irradiance are either in comfort zone or out of it (with or without possible passive measures), the following segments are defined: • Q – Mechanical cooling and/or dehumidification needed (i.e. climatological parameters are outside of possible passive measures). • A – Potential for passive solutions for hot-arid climates (i.e. indoor comfort can be facilitated by applying direct or indirect evaporative cooling, using high thermal mass, night-time ventilation and natural ventilation). • M – Natural ventilation and/or high thermal mass is needed to facilitate indoor comfort. • V – Natural ventilation can provide indoor comfort. • CSh – Indoor comfort is achieved using shading of transparent building elements. • CSn – Indoor comfort is achieved by providing adequate solar irradiation. • R – There is potential for passive solar heating (i.e. using direct or indirect solar gain design measures to increase indoor temperatures using available solar irradiation). However, the available amount of solar radiation may be insufficient to achieve thermal comfort (i.e. additional heating is necessary). • H – There is no potential for passive solar heating – indoor comfort must be achieved by conventional heating. • Cz – Cumulative achieved comfort by shading (i.e. CSh) and solar irradiation (i.e. CSn). • Sh – Share of year or month when shading should be applied (i.e. Sh = Q + A + M + V + CSh). • Sn – Share of year or month when solar irradiation should be provided (i.e. Sn = H + R + CSn). The average period of year in every distinct segment (i.e. Q, A, M, V, CSh, CSn, R, H, Cz, Sh and Sn) is calculated and its share expressed in % is presented on the charts. The calculation is performed on the basis of equations adapted from Olgyay (1963) and upgraded by the authors.
A71: Further information:
A73: Olgyay, V. | C73: Design with climate: Bioclimatic approach to architectural regionalism. Princeton University Press, Princeton, New Jersey, US, 1963.
A74: Pajek, L., Košir, M. | C74: Can building energy performance be predicted by a bioclimatic potential analysis? Case study of the Alpine-Adriatic region. Energy and Buildings 139:160–173. | R74: DOI: 10.1016/j.enbuild.2017.01.035
A75: Pajek, L., Košir, M. | C75: Implications of present and upcoming changes in bioclimatic potential for energy performance of residential buildings. Building and Environmnet 127: 157-172 | R75: DOI: 10.1016/j.buildenv.2017.10.040
A76: Košir, M., Pajek, L. | C76: BcChart v2.0 – A Tool for Bioclimatic Potential Evaluation. ISES Solar World Conference 2017 and the IEA SHC Solar Heating and Cooling Conference for Buildings and Industry 2017At: Abu Dhabi, UAE. | R76: DOI: 10.18086/swc.2017.21.04
A79: Limitations of the BcChart software:
A81: The use of the bioclimatic chart is directly applicable only to inhabitants of the temperate zone, wearing customary indoor clothing, engaged in sedentary or light muscular work, at elevations not in excess of 300 m above sea level. To apply the chart to climatic regions other than approximately 40° latitude, the lower perimeter of the summer comfort line should be elevated about 0.4 K for every 5° latitude change toward the lower latitudes. The upper perimeter may be raised proportionately, but not above 30 °C.
A85: The impact of sun radiation is calculated on the basis of Olgyay (1963), assuming the effective area of human body of 0.5 m2.

Sheet Calculation help (hidden)
C1: X3 (Rhpop) | D1: M | E1: B
B2: JAN | C2: =('INPUT DATA'!B16-E2)/D2 -> 79.43193548 | D2: =('INPUT DATA'!D16-'INPUT DATA'!C16)/('INPUT DATA'!F16-'INPUT DATA'!E16) -> -0.1057283894 | E2: ='INPUT DATA'!C16-(D2*'INPUT DATA'!E16) -> 20.68562996
B3: FEB | C3: =('INPUT DATA'!B17-E3)/D3 -> 78.7375 | D3: =('INPUT DATA'!D17-'INPUT DATA'!C17)/('INPUT DATA'!F17-'INPUT DATA'!E17) -> -0.1000354646 | E3: ='INPUT DATA'!C17-(D3*'INPUT DATA'!E17) -> 18.30207811
B4: MAR | C4: =('INPUT DATA'!B18-E4)/D4 -> 79.42903226 | D4: =('INPUT DATA'!D18-'INPUT DATA'!C18)/('INPUT DATA'!F18-'INPUT DATA'!E18) -> -0.09311640787 | E4: ='INPUT DATA'!C18-(D4*'INPUT DATA'!E18) -> 18.85775907
B5: APR | C5: =('INPUT DATA'!B19-E5)/D5 -> 82.9375 | D5: =('INPUT DATA'!D19-'INPUT DATA'!C19)/('INPUT DATA'!F19-'INPUT DATA'!E19) -> -0.118866311 | E5: ='INPUT DATA'!C19-(D5*'INPUT DATA'!E19) -> 23.002308
B6: MAY | C6: =('INPUT DATA'!B20-E6)/D6 -> 80.61532258 | D6: =('INPUT DATA'!D20-'INPUT DATA'!C20)/('INPUT DATA'!F20-'INPUT DATA'!E20) -> -0.1015778774 | E6: ='INPUT DATA'!C20-(D6*'INPUT DATA'!E20) -> 21.43486239
B7: JUN | C7: =('INPUT DATA'!B21-E7)/D7 -> 84.66683333 | D7: =('INPUT DATA'!D21-'INPUT DATA'!C21)/('INPUT DATA'!F21-'INPUT DATA'!E21) -> -0.1182370528 | E7: ='INPUT DATA'!C21-(D7*'INPUT DATA'!E21) -> 25.60675684
B8: JUL | C8: =('INPUT DATA'!B22-E8)/D8 -> 83.28016129 | D8: =('INPUT DATA'!D22-'INPUT DATA'!C22)/('INPUT DATA'!F22-'INPUT DATA'!E22) -> -0.09619478845 | E8: ='INPUT DATA'!C22-(D8*'INPUT DATA'!E22) -> 24.67724653
B9: AUG | C9: =('INPUT DATA'!B23-E9)/D9 -> 81.54822581 | D9: =('INPUT DATA'!D23-'INPUT DATA'!C23)/('INPUT DATA'!F23-'INPUT DATA'!E23) -> -0.07508563461 | E9: ='INPUT DATA'!C23-(D9*'INPUT DATA'!E23) -> 24.77003577
B10: SEP | C10: =('INPUT DATA'!B24-E10)/D10 -> 85.499 | D10: =('INPUT DATA'!D24-'INPUT DATA'!C24)/('INPUT DATA'!F24-'INPUT DATA'!E24) -> -0.1307816836 | E10: ='INPUT DATA'!C24-(D10*'INPUT DATA'!E24) -> 30.5980365
B11: OCT | C11: =('INPUT DATA'!B25-E11)/D11 -> 80.55177419 | D11: =('INPUT DATA'!D25-'INPUT DATA'!C25)/('INPUT DATA'!F25-'INPUT DATA'!E25) -> -0.09387495135 | E11: ='INPUT DATA'!C25-(D11*'INPUT DATA'!E25) -> 23.90905195
B12: NOV | C12: =('INPUT DATA'!B26-E12)/D12 -> 77.7745 | D12: =('INPUT DATA'!D26-'INPUT DATA'!C26)/('INPUT DATA'!F26-'INPUT DATA'!E26) -> -0.1145655781 | E12: ='INPUT DATA'!C26-(D12*'INPUT DATA'!E26) -> 23.29878055
B13: DEC | C13: =('INPUT DATA'!B27-E13)/D13 -> 76.24677419 | D13: =('INPUT DATA'!D27-'INPUT DATA'!C27)/('INPUT DATA'!F27-'INPUT DATA'!E27) -> -0.1197142305 | E13: ='INPUT DATA'!C27-(D13*'INPUT DATA'!E27) -> 20.91685616
B16: POTENTIAL ANALYSIS | O16: horizontalne meje | S16: vertikalne meje
O17: levo | Q17: desno | S17: levo | T17: prelom | U17: desno
B18: S = | C18: 23 | D18: ft2 | E18: avergae surface of a clothed man | O18: y | Q18: k | R18: n | S18: x | T18: x | U18: x
B19: Sc = | C19: 0.9 | E19: exposure rate | L19: low comf line | O19: 21 | Q19: =-(1/48) -> -0.02083333333 | R19: =1058/48 -> 22.04166667 | S19: 18 | T19: 50 | U19: 80
B20: ts = | C20: 93 | D20: °F | E20: comfortable skin temperature | L20: top comf line | O20: 27 | Q20: =(-53/192) -> -0.2760416667 | R20: =(1019/24) -> 42.45833333 | S20: 18 | T20: 56 | U20: 80
B21: Clo = | C21: 1 | D21: °F/BTU/ft2h | E21: clothing insulation | N21: top vent line | O21: / | Q21: =(-63/586) -> -0.1075085324 | R21: =10935/293 -> 37.32081911 | S21: =(3118/63) -> 49.49206349 | U21: 100
B22: V.Clo = | C22: 0.4 | E22: impact of wind on clothing | N22: top TM line | O22: 32 | Q22: =(-189/496) -> -0.3810483871 | R22: =(12613/248) -> 50.85887097 | S22: 18 | T22: =(3118/63) -> 49.49206349 | U22: 80 | X22: err | Y22: premica je pod mejo
B23: c = | C23: 0.88 | D23: R | E23: unit of 1 clo | N23: top cool line | O23: 44 | Q23: =(-39/124) -> -0.314516129 | R23: =(3079/62) -> 49.66129032 | S23: 0 | T23: 18 | U23: =(448354/7521) -> 59.61361521 | X23: xhx | Y23: premica je nad ali izven meje (npr. če gledamo za primer CZ, je premica desno zgoraj v "V" področju)
B24: α= | C24: 0.4 | E24: absorptivity | O24: k | P24: n
B25: Sef = | C25: 0.5 | D25: m2 | E25: effective surface of clothing | N25: low vent line | O25: =(-189/496) -> -0.3810483871 | P25: =(12613/248) -> 50.85887097 | Q25: =-(1/48) -> -0.02083333333 | R25: =1058/48 -> 22.04166667 | S25: =(3118/63) -> 49.49206349 | T25: 80 | U25: 100
B26: Clo/c = | C26: =C21/C23 -> 1.136363636
B27: V.Clo/c = | C27: =(C22)/C23 -> 0.4545454545
B28: M = | C28: 430 | D28: BTU/hour | E28: =18.43*S*Met
B29: E = | C29: 130 | D29: BTU/hour | J29: enačba premice
E30: y1 | G30: y2 | H30: x2 | I30: x1 | J30: k | K30: k* | L30: n | M30: n* | N30: original | P30: modified | R30: modified | T30: original | AH30: modified
A31: month | B31: Tsub [°C] | C31: ∆T [K] | D31: T*max | E31: Tmax | F31: TPSH [°C] | G31: Tmin | H31: RHmax | I31: RHmin | J31: (Tmin-Tmax) / RHmax-RHmin) | K31: (Tmin-T*max) / (RHmax-RHmin) | L31: n = Tmax - k*Rhmin | M31: n = T*max - k*Rhmin | N31: x(CZlow) | O31: y(CZlow) | P31: x*(CZlow) | Q31: y*(CZlow) | R31: x*(TPSH) | S31: y*(TPSH) | T31: x(CZtop) | U31: y(CZtop) | V31: x(TM) | W31: y(TM) | X31: x(NVleft) | Y31: y(NVleft) | Z31: x(NVtop) | AA31: y(NVtop) | AB31: x(NVlow) | AC31: y(NVlow) | AD31: x(cooltop) | AE31: y(cooltop) | AF31: x(coollow) | AG31: y(coollow) | AH31: x*(SH) | AI31: y*(SH) | AJ31: x(CZdesno) | AK31: y(CZdesno)
A32: 1 | B32: =(($C$20-(($C$28-$C$29-((-'INPUT DATA'!G16*$C$25*$C$24)/0.29307107))*($C$26+$C$27)/($C$18*$C$19)))-32)/1.8 -> 17.08850609 | C32: =21-B32 -> 3.911493906 | D32: =IF(I32<$S$20,E32,IF(I32<$T$20,IF(E32>$O$20,E32,IF(AND(J32>$Q$20,E32>$O$19,IF(($R$19-L32)/(J32-$Q$19)<$U$20,IF(E32<($Q$20*(($R$20-L32)/(J32-$Q$20))+$R$20),IF(AND(($R$20-L32)/(J32-$Q$20)<I32,J32*(($R$20-L32)/(J32-$Q$20))+L32<$O$20),"xhx","err"),IF(G32>($Q$20*(($R$20-L32)/(J32-$Q$20))+$R$20),"xhx",($R$20-L32)/(J32-$Q$20))),"xhx")>$T$20,IF(($R$19-L32)/(J32-$Q$19)<$U$20,IF(E32<($Q$20*(($R$20-L32)/(J32-$Q$20))+$R$20),IF(AND(($R$20-L32)/(J32-$Q$20)<I32,J32*(($R$20-L32)/(J32-$Q$20))+L32<$O$20),"xhx","err"),IF(G32>($Q$20*(($R$20-L32)/(J32-$Q$20))+$R$20),"xhx",($R$20-L32)/(J32-$Q$20))),"xhx")<>"err",IF(($R$19-L32)/(J32-$Q$19)<$U$20,IF(E32<($Q$20*(($R$20-L32)/(J32-$Q$20))+$R$20),IF(AND(($R$20-L32)/(J32-$Q$20)<I32,J32*(($R$20-L32)/(J32-$Q$20))+L32<$O$20),"xhx","err"),IF(G32>($Q$20*(($R$20-L32)/(J32-$Q$20))+$R$20),"xhx",($R$20-L32)/(J32-$Q$20))),"xhx")<>"xhx"),E32,IF(E32+C32>$O$20,$O$20,E32+C32))),IF(I32<$U$20,IF(E32>$Q$20*I32+$R$20,E32,IF(AND(J32>$Q$20,E32>$O$19),E32,IF(E32+C32>$Q$20*I32+$R$20,$Q$20*I32+$R$20,E32+C32))),E32))) -> 16.79310681 | E32: ='INPUT DATA'!C16 -> 12.8816129 | F32: =(($C$20-(($C$28-$C$29-((-'INPUT DATA'!H16*$C$25*$C$24)/0.29307107))*($C$26+$C$27)/($C$18*$C$19)))-32)/1.8 -> 14.3305505 | G32: ='INPUT DATA'!D16 -> 11.69322581 | H32: ='INPUT DATA'!F16 -> 85.05193548 | I32: ='INPUT DATA'!E16 -> 73.81193548 | J32: =(G32-E32)/(H32-I32) -> -0.1057283894 | K32: =(G32-D32)/(H32-I32) -> -0.4537260678 | L32: =E32-J32*I32 -> 20.68562996 | M32: =D32-K32*I32 -> 50.28350605 | N32: =IF(($O$19-L32)/J32<$S$19,"err",IF(($O$19-L32)/J32<$T$19,IF(E32<$O$19,"err",IF(G32>$O$19,"xhx",($O$19-L32)/J32)),IF(($R$19-L32)/(J32-$Q$19)<$T$25,IF(E32<(J32*($R$19-L32)/(J32-$Q$19))+L32,"err",IF(G32>(J32*($R$19-L32)/(J32-$Q$19))+L32,"xhx",($R$19-L32)/(J32-$Q$19))),IF(I32>($R$19-L32)/(J32-$Q$19),"err","xhx")))) -> err | O32: =IF(N32="err","err",IF(N32="xhx","xhx",J32*N32+L32)) -> err | P32: =IF(($O$19-M32)/K32<$S$19,"err",IF(($O$19-M32)/K32<$T$19,IF(D32<$O$19,"err",IF(G32>$O$19,"xhx",($O$19-M32)/K32)),IF(($R$19-M32)/(K32-$Q$19)<$T$25,IF(D32<(K32*($R$19-M32)/(K32-$Q$19))+M32,"err",IF(G32>(K32*($R$19-M32)/(K32-$Q$19))+M32,"xhx",($R$19-M32)/(K32-$Q$19))),IF(I32>($R$19-L32)/(J32-$Q$19),"err","xhx")))) -> err | Q32: =IF(P32="err","err",IF(P32="xhx","xhx",K32*P32+M32)) -> err | R32: =IF(F32>E32,I32,IF(F32<G32,"xhx",(F32-M32)/K32)) -> 73.81193548 | S32: =IF(R32="err","err",IF(R32="xhx","xhx",K32*R32+M32)) -> 16.79310681 | T32: =IF(AH32="err","err",IF(N32<>P32,"err",IF(($O$20-L32)/J32<$S$20,IF((J32*$S$20+L32)<$O$19,IF(AND(($R$20-L32)/(J32-$Q$20)<I32,J32*(($R$20-L32)/(J32-$Q$20))+L32<$O$20),"xhx","err"),IF(I32>$S$20,IF(AND(($R$20-L32)/(J32-$Q$20)<I32,J32*(($R$20-L32)/(J32-$Q$20))+L32<$O$20),"xhx","err"),$S$20)),IF(($O$20-L32)/J32<$T$20,IF(E32<$O$20,IF(AND(($R$20-L32)/(J32-$Q$20)<I32,J32*(($R$20-L32)/(J32-$Q$20))+L32<$O$20),"xhx",IF(($R$20-L32)/(J32-$Q$20)<$U$20,($R$20-L32)/(J32-$Q$20),"err")),IF(G32>$O$20,"xhx",($O$20-L32)/J32)),IF(($R$19-L32)/(J32-$Q$19)<$U$20,IF(E32<($Q$20*(($R$20-L32)/(J32-$Q$20))+$R$20),IF(AND(($R$20-L32)/(J32-$Q$20)<I32,J32*(($R$20-L32)/(J32-$Q$20))+L32<$O$20),"xhx","err"),IF(G32>($Q$20*(($R$20-L32)/(J32-$Q$20))+$R$20),"xhx",($R$20-L32)/(J32-$Q$20))),"xhx"))))) -> err | U32: =IF(T32="err","err",IF(T32="xhx","xhx",J32*T32+L32)) -> err | V32: =IF(N32<>P32,"err",IF(($O$22-L32)/J32<$S$20,IF((J32*$S$20+L32)<$O$20,IF(AND(($P$25-L32)/(J32-$O$25)<I32,J32*(($P$25-L32)/(J32-$O$25))+L32<$O$22),"xhx","err"),IF(I32>$S$20,IF(AND(($P$25-L32)/(J32-$O$25)<I32,J32*(($P$25-L32)/(J32-$O$25))+L32<$O$22),"xhx","err"),$S$20)),IF(($O$22-L32)/J32<$T$22,IF(E32<$O$22,IF(AND(($P$25-L32)/(J32-$O$25)<I32,J32*(($P$25-L32)/(J32-$O$25))+L32<$O$22),"xhx",IF(($P$25-L32)/(J32-$O$25)<$U$22,IF(($P$25-L32)/(J32-$O$25)<$S$20,"err",($P$25-L32)/(J32-$O$25)),"err")),IF(G32>$O$22,"xhx",($O$22-L32)/J32)),IF(($R$19-L32)/(J32-$Q$19)<$U$20,IF(E32<($Q$22*(($R$22-L32)/(J32-$Q$22))+$R$22),"err",IF(G32>($Q$22*(($R$22-L32)/(J32-$Q$22))+$R$22),"xhx",($R$22-L32)/(J32-$Q$22))),"xhx")))) -> err | W32: =IF(V32="err","err",IF(V32="xhx","xhx",J32*V32+L32)) -> err | X32: =IF(E32<J32*(($P$25-L32)/(J32-$O$25))+L32,"err",IF(($P$25-L32)/(J32-$O$25)<$S$21,"err",IF(($P$25-L32)/(J32-$O$25)>$T$25,"err",IF(G32>J32*(($P$25-L32)/(J32-$O$25))+L32,IF(G32<$O$25*H32+$P$25,"err","xhx"),($P$25-L32)/(J32-$O$25))))) -> err | Y32: =IF(X32="err","err",IF(X32="xhx","xhx",J32*X32+L32)) -> err | Z32: =IF(OR(($R$21-L32)/(J32-$Q$21)>100,E32<J32*(($R$21-L32)/(J32-$Q$21))+L32),"err",IF(($R$21-L32)/(J32-$Q$21)<$S$21,"err",IF(G32>J32*(($R$21-L32)/(J32-$Q$21))+L32,"xhx",($R$21-L32)/(J32-$Q$21)))) -> err | AA32: =IF(Z32="err","err",IF(Z32="xhx","xhx",J32*Z32+L32)) -> err | AB32: =IF(E32<J32*(($R$25-L32)/(J32-$Q$25))+L32,"err",IF(($R$25-L32)/(J32-$Q$25)<$T$25,"err",IF(G32>J32*(($R$25-L32)/(J32-$Q$25))+L32,"xhx",($R$25-L32)/(J32-$Q$25)))) -> err | AC32: =IF(AB32="err","err",IF(AB32="xhx","xhx",J32*AB32+L32)) -> err | AD32: =IF(($O$23-L32)/J32<$T$23,IF(E32<$O$23,"err",IF(G32>$O$23,"xhx",($O$23-L32)/J32)),IF(($R$23-L32)/(J32-$Q$23)<$U$23,IF(E32<($Q$23*(($R$23-L32)/(J32-$Q$23))+$R$23),"err",IF(G32>($Q$23*(($R$23-L32)/(J32-$Q$23))+$R$23),"xhx",($R$23-L32)/(J32-$Q$23))),"xhx")) -> err | AE32: =IF(AD32="err","err",IF(AD32="xhx","xhx",J32*AD32+L32)) -> err | AF32: =IF(($O$19-L32)/J32<$S$20,IF(E32>$O$19,IF(G32>$O$19,"xhx",($O$19-L32)/J32),"err"),"err") -> err | AG32: =IF(AF32="err","err",IF(Z32="xhx","xhx",J32*AF32+L32)) -> err | AH32: =IF(($O$19-M32)/K32<$T$19,IF(D32<$O$19,"err",IF(G32>$O$19,"xhx",($O$19-M32)/K32)),IF(D32<(K32*($R$19-M32)/(K32-$Q$19))+M32,"err",IF(G32>(K32*($R$19-M32)/(K32-$Q$19))+M32,"xhx",($R$19-M32)/(K32-$Q$19)))) -> err | AI32: =IF(AH32="err","err",IF(AH32="xhx","xhx",K32*AH32+M32)) -> err | AJ32: =IF(($R$20-L32)/(J32-$Q$20)<$T$20,"err",IF(($R$20-L32)/(J32-$Q$20)<$T$25,IF(G32>($Q$20*(($R$20-L32)/(J32-$Q$20))+$R$20),"xhx",($R$20-L32)/(J32-$Q$20)),"err")) -> err | AK32: =IF(AJ32="err","err",IF(AJ32="xhx","xhx",J32*AJ32+L32)) -> err
A33: 2 | B33: =(($C$20-(($C$28-$C$29-((-'INPUT DATA'!G17*$C$25*$C$24)/0.29307107))*($C$26+$C$27)/($C$18*$C$19)))-32)/1.8 -> 15.36696098 | C33: =21-B33 -> 5.63303902 | D33: =IF(I33<$S$20,E33,IF(I33<$T$20,IF(E33>$O$20,E33,IF(AND(J33>$Q$20,E33>$O$19,IF(($R$19-L33)/(J33-$Q$19)<$U$20,IF(E33<($Q$20*(($R$20-L33)/(J33-$Q$20))+$R$20),IF(AND(($R$20-L33)/(J33-$Q$20)<I33,J33*(($R$20-L33)/(J33-$Q$20))+L33<$O$20),"xhx","err"),IF(G33>($Q$20*(($R$20-L33)/(J33-$Q$20))+$R$20),"xhx",($R$20-L33)/(J33-$Q$20))),"xhx")>$T$20,IF(($R$19-L33)/(J33-$Q$19)<$U$20,IF(E33<($Q$20*(($R$20-L33)/(J33-$Q$20))+$R$20),IF(AND(($R$20-L33)/(J33-$Q$20)<I33,J33*(($R$20-L33)/(J33-$Q$20))+L33<$O$20),"xhx","err"),IF(G33>($Q$20*(($R$20-L33)/(J33-$Q$20))+$R$20),"xhx",($R$20-L33)/(J33-$Q$20))),"xhx")<>"err",IF(($R$19-L33)/(J33-$Q$19)<$U$20,IF(E33<($Q$20*(($R$20-L33)/(J33-$Q$20))+$R$20),IF(AND(($R$20-L33)/(J33-$Q$20)<I33,J33*(($R$20-L33)/(J33-$Q$20))+L33<$O$20),"xhx","err"),IF(G33>($Q$20*(($R$20-L33)/(J33-$Q$20))+$R$20),"xhx",($R$20-L33)/(J33-$Q$20))),"xhx")<>"xhx"),E33,IF(E33+C33>$O$20,$O$20,E33+C33))),IF(I33<$U$20,IF(E33>$Q$20*I33+$R$20,E33,IF(AND(J33>$Q$20,E33>$O$19),E33,IF(E33+C33>$Q$20*I33+$R$20,$Q$20*I33+$R$20,E33+C33))),E33))) -> 16.76375331 | E33: ='INPUT DATA'!C17 -> 11.13071429 | F33: =(($C$20-(($C$28-$C$29-((-'INPUT DATA'!H17*$C$25*$C$24)/0.29307107))*($C$26+$C$27)/($C$18*$C$19)))-32)/1.8 -> 10.67446147 | G33: ='INPUT DATA'!D17 -> 9.720357143 | H33: ='INPUT DATA'!F17 -> 85.78678571 | I33: ='INPUT DATA'!E17 -> 71.68821429 | J33: =(G33-E33)/(H33-I33) -> -0.1000354646 | K33: =(G33-D33)/(H33-I33) -> -0.499582259 | L33: =E33-J33*I33 -> 18.30207811 | M33: =D33-K33*I33 -> 52.57791334 | N33: err | O33: =IF(N33="err","err",IF(N33="xhx","xhx",J33*N33+L33)) -> err | P33: =IF(($O$19-M33)/K33<$S$19,"err",IF(($O$19-M33)/K33<$T$19,IF(D33<$O$19,"err",IF(G33>$O$19,"xhx",($O$19-M33)/K33)),IF(($R$19-M33)/(K33-$Q$19)<$T$25,IF(D33<(K33*($R$19-M33)/(K33-$Q$19))+M33,"err",IF(G33>(K33*($R$19-M33)/(K33-$Q$19))+M33,"xhx",($R$19-M33)/(K33-$Q$19))),IF(I33>($R$19-L33)/(J33-$Q$19),"err","xhx")))) -> err | Q33: =IF(P33="err","err",IF(P33="xhx","xhx",K33*P33+M33)) -> err | R33: =IF(F33>E33,I33,IF(F33<G33,"xhx",(F33-M33)/K33)) -> 83.87698146 | S33: =IF(R33="err","err",IF(R33="xhx","xhx",K33*R33+M33)) -> 10.67446147 | T33: =IF(AH33="err","err",IF(N33<>P33,"err",IF(($O$20-L33)/J33<$S$20,IF((J33*$S$20+L33)<$O$19,IF(AND(($R$20-L33)/(J33-$Q$20)<I33,J33*(($R$20-L33)/(J33-$Q$20))+L33<$O$20),"xhx","err"),IF(I33>$S$20,IF(AND(($R$20-L33)/(J33-$Q$20)<I33,J33*(($R$20-L33)/(J33-$Q$20))+L33<$O$20),"xhx","err"),$S$20)),IF(($O$20-L33)/J33<$T$20,IF(E33<$O$20,IF(AND(($R$20-L33)/(J33-$Q$20)<I33,J33*(($R$20-L33)/(J33-$Q$20))+L33<$O$20),"xhx",IF(($R$20-L33)/(J33-$Q$20)<$U$20,($R$20-L33)/(J33-$Q$20),"err")),IF(G33>$O$20,"xhx",($O$20-L33)/J33)),IF(($R$19-L33)/(J33-$Q$19)<$U$20,IF(E33<($Q$20*(($R$20-L33)/(J33-$Q$20))+$R$20),IF(AND(($R$20-L33)/(J33-$Q$20)<I33,J33*(($R$20-L33)/(J33-$Q$20))+L33<$O$20),"xhx","err"),IF(G33>($Q$20*(($R$20-L33)/(J33-$Q$20))+$R$20),"xhx",($R$20-L33)/(J33-$Q$20))),"xhx"))))) -> err | U33: =IF(T33="err","err",IF(T33="xhx","xhx",J33*T33+L33)) -> err | V33: err | W33: =IF(V33="err","err",IF(V33="xhx","xhx",J33*V33+L33)) -> err | X33: err | Y33: =IF(X33="err","err",IF(X33="xhx","xhx",J33*X33+L33)) -> err | Z33: =IF(OR(($R$21-L33)/(J33-$Q$21)>100,E33<J33*(($R$21-L33)/(J33-$Q$21))+L33),"err",IF(($R$21-L33)/(J33-$Q$21)<$S$21,"err",IF(G33>J33*(($R$21-L33)/(J33-$Q$21))+L33,"xhx",($R$21-L33)/(J33-$Q$21)))) -> err | AA33: =IF(Z33="err","err",IF(Z33="xhx","xhx",J33*Z33+L33)) -> err | AB33: =IF(E33<J33*(($R$25-L33)/(J33-$Q$25))+L33,"err",IF(($R$25-L33)/(J33-$Q$25)<$T$25,"err",IF(G33>J33*(($R$25-L33)/(J33-$Q$25))+L33,"xhx",($R$25-L33)/(J33-$Q$25)))) -> err | AC33: =IF(AB33="err","err",IF(AB33="xhx","xhx",J33*AB33+L33)) -> err | AD33: =IF(($O$23-L33)/J33<$T$23,IF(E33<$O$23,"err",IF(G33>$O$23,"xhx",($O$23-L33)/J33)),IF(($R$23-L33)/(J33-$Q$23)<$U$23,IF(E33<($Q$23*(($R$23-L33)/(J33-$Q$23))+$R$23),"err",IF(G33>($Q$23*(($R$23-L33)/(J33-$Q$23))+$R$23),"xhx",($R$23-L33)/(J33-$Q$23))),"xhx")) -> err | AE33: =IF(AD33="err","err",IF(AD33="xhx","xhx",J33*AD33+L33)) -> err | AF33: =IF(($O$19-L33)/J33<$S$20,IF(E33>$O$19,IF(G33>$O$19,"xhx",($O$19-L33)/J33),"err"),"err") -> err | AG33: =IF(AF33="err","err",IF(Z33="xhx","xhx",J33*AF33+L33)) -> err | AH33: =IF(($O$19-M33)/K33<$T$19,IF(D33<$O$19,"err",IF(G33>$O$19,"xhx",($O$19-M33)/K33)),IF(D33<(K33*($R$19-M33)/(K33-$Q$19))+M33,"err",IF(G33>(K33*($R$19-M33)/(K33-$Q$19))+M33,"xhx",($R$19-M33)/(K33-$Q$19)))) -> err | AI33: =IF(AH33="err","err",IF(AH33="xhx","xhx",K33*AH33+M33)) -> err | AJ33: =IF(($R$20-L33)/(J33-$Q$20)<$T$20,"err",IF(($R$20-L33)/(J33-$Q$20)<$T$25,IF(G33>($Q$20*(($R$20-L33)/(J33-$Q$20))+$R$20),"xhx",($R$20-L33)/(J33-$Q$20)),"err")) -> err | AK33: =IF(AJ33="err","err",IF(AJ33="xhx","xhx",J33*AJ33+L33)) -> err
A34: 3 | B34: =(($C$20-(($C$28-$C$29-((-'INPUT DATA'!G18*$C$25*$C$24)/0.29307107))*($C$26+$C$27)/($C$18*$C$19)))-32)/1.8 -> 13.07884677 | C34: 7.921153231 | D34: 19.99018549 | E34: ='INPUT DATA'!C18 -> 12.06903226 | F34: =(($C$20-(($C$28-$C$29-((-'INPUT DATA'!H18*$C$25*$C$24)/0.29307107))*($C$26+$C$27)/($C$18*$C$19)))-32)/1.8 -> 8.97147852 | G34: ='INPUT DATA'!D18 -> 10.85419355 | H34: ='INPUT DATA'!F18 -> 85.95225806 | I34: ='INPUT DATA'!E18 -> 72.90580645 | J34: -0.09311640787 | K34: -0.7002664182 | L34: 18.85775907 | M34: 71.04367344 | N34: err | O34: err | P34: err | Q34: err | R34: xhx | S34: xhx | T34: err | U34: err | V34: err | W34: err | X34: err | Y34: err | Z34: err | AA34: err | AB34: err | AC34: err | AD34: err | AE34: err | AF34: err | AG34: err | AH34: err | AI34: err | AJ34: err | AK34: err
A35: 4 | B35: =(($C$20-(($C$28-$C$29-((-'INPUT DATA'!G19*$C$25*$C$24)/0.29307107))*($C$26+$C$27)/($C$18*$C$19)))-32)/1.8 -> 8.732267105 | C35: 12.26773289 | D35: 20.69392014 | E35: ='INPUT DATA'!C19 -> 13.63033333 | F35: =(($C$20-(($C$28-$C$29-((-'INPUT DATA'!H19*$C$25*$C$24)/0.29307107))*($C$26+$C$27)/($C$18*$C$19)))-32)/1.8 -> 5.755483477 | G35: ='INPUT DATA'!D19 -> 12.65733333 | H35: ='INPUT DATA'!F19 -> 87.03033333 | I35: ='INPUT DATA'!E19 -> 78.84466667 | J35: -0.118866311 | K35: -0.9817876946 | L35: 23.002308 | M35: 98.10264366 | N35: err | O35: err | P35: 79.15149778 | Q35: 20.39267713 | R35: xhx | S35: xhx | T35: err | U35: err | V35: err | W35: err | X35: err | Y35: err | Z35: err | AA35: err | AB35: err | AC35: err | AD35: err | AE35: err | AF35: err | AG35: err | AH35: 79.15149778 | AI35: 20.39267713 | AJ35: err | AK35: err
A36: 5 | B36: =(($C$20-(($C$28-$C$29-((-'INPUT DATA'!G20*$C$25*$C$24)/0.29307107))*($C$26+$C$27)/($C$18*$C$19)))-32)/1.8 -> 8.895694728 | C36: 12.10430527 | D36: 21.58495296 | E36: ='INPUT DATA'!C20 -> 13.75387097 | F36: =(($C$20-(($C$28-$C$29-((-'INPUT DATA'!H20*$C$25*$C$24)/0.29307107))*($C$26+$C$27)/($C$18*$C$19)))-32)/1.8 -> 4.43976457 | G36: ='INPUT DATA'!D20 -> 12.7383871 | H36: ='INPUT DATA'!F20 -> 85.61387097 | I36: ='INPUT DATA'!E20 -> 75.61677419 | J36: -0.1015778774 | K36: -0.8849134964 | L36: 21.43486239 | M36: 88.49925699 | N36: err | O36: err | P36: 76.91137139 | Q36: 20.43934643 | R36: xhx | S36: xhx | T36: err | U36: err | V36: err | W36: err | X36: err | Y36: err | Z36: err | AA36: err | AB36: err | AC36: err | AD36: err | AE36: err | AF36: err | AG36: err | AH36: 76.91137139 | AI36: 20.43934643 | AJ36: err | AK36: err
A37: 6 | B37: =(($C$20-(($C$28-$C$29-((-'INPUT DATA'!G21*$C$25*$C$24)/0.29307107))*($C$26+$C$27)/($C$18*$C$19)))-32)/1.8 -> 8.991238533 | C37: 12.00876147 | D37: 20.51789757 | E37: ='INPUT DATA'!C21 -> 16.209 | F37: =(($C$20-(($C$28-$C$29-((-'INPUT DATA'!H21*$C$25*$C$24)/0.29307107))*($C$26+$C$27)/($C$18*$C$19)))-32)/1.8 -> 4.246205079 | G37: ='INPUT DATA'!D21 -> 14.983 | H37: ='INPUT DATA'!F21 -> 89.85133333 | I37: ='INPUT DATA'!E21 -> 79.48233333 | J37: -0.1182370528 | K37: -0.5337928025 | L37: 25.60675684 | M37: 62.94499503 | N37: err | O37: err | P37: 79.7398836 | Q37: 20.38041909 | R37: xhx | S37: xhx | T37: err | U37: err | V37: =IF(N37<>P37,"err",IF(($O$22-L37)/J37<$S$20,IF((J37*$S$20+L37)<$O$20,IF(AND(($P$25-L37)/(J37-$O$25)<I37,J37*(($P$25-L37)/(J37-$O$25))+L37<$O$22),"xhx","err"),IF(I37>$S$20,IF(AND(($P$25-L37)/(J37-$O$25)<I37,J37*(($P$25-L37)/(J37-$O$25))+L37<$O$22),"xhx","err"),$S$20)),IF(($O$22-L37)/J37<$T$22,IF(E37<$O$22,IF(AND(($P$25-L37)/(J37-$O$25)<I37,J37*(($P$25-L37)/(J37-$O$25))+L37<$O$22),"xhx",IF(($P$25-L37)/(J37-$O$25)<$U$22,IF(($P$25-L37)/(J37-$O$25)<$S$20,"err",IF(E37<$O$22,"err",($P$25-L37)/(J37-$O$25))),"err")),IF(G37>$O$22,"xhx",($O$22-L37)/J37)),IF(($R$19-L37)/(J37-$Q$19)<$U$20,IF(E37<($Q$22*(($R$22-L37)/(J37-$Q$22))+$R$22),"err",IF(G37>($Q$22*(($R$22-L37)/(J37-$Q$22))+$R$22),"xhx",($R$22-L37)/(J37-$Q$22))),"xhx")))) -> err | W37: err | X37: =IF(E37<J37*(($P$25-L37)/(J37-$O$25))+L37,"err",IF(($P$25-L37)/(J37-$O$25)<$S$21,"err",IF(($P$25-L37)/(J37-$O$25)>$T$25,"err",IF(G37>J37*(($P$25-L37)/(J37-$O$25))+L37,IF(G37<$O$25*H37+$P$25,"err","xhx"),($P$25-L37)/(J37-$O$25))))) -> err | Y37: err | Z37: err | AA37: err | AB37: err | AC37: err | AD37: err | AE37: err | AF37: err | AG37: err | AH37: 79.7398836 | AI37: 20.38041909 | AJ37: err | AK37: err
A38: 7 | B38: =(($C$20-(($C$28-$C$29-((-'INPUT DATA'!G22*$C$25*$C$24)/0.29307107))*($C$26+$C$27)/($C$18*$C$19)))-32)/1.8 -> 9.695448573 | C38: 11.30455143 | D38: 20.95433132 | E38: ='INPUT DATA'!C22 -> 17.18354839 | F38: =(($C$20-(($C$28-$C$29-((-'INPUT DATA'!H22*$C$25*$C$24)/0.29307107))*($C$26+$C$27)/($C$18*$C$19)))-32)/1.8 -> 3.723802582 | G38: ='INPUT DATA'!D22 -> 16.14870968 | H38: ='INPUT DATA'!F22 -> 88.65903226 | I38: ='INPUT DATA'!E22 -> 77.90129032 | J38: -0.09619478845 | K38: -0.4467128575 | L38: 24.67724653 | M38: 55.75383932 | N38: err | O38: err | P38: 79.15894224 | Q38: 20.39252204 | R38: xhx | S38: xhx | T38: err | U38: err | V38: err | W38: err | X38: err | Y38: err | Z38: err | AA38: err | AB38: err | AC38: err | AD38: err | AE38: err | AF38: err | AG38: err | AH38: 79.15894224 | AI38: 20.39252204 | AJ38: err | AK38: err
A39: 8 | B39: =(($C$20-(($C$28-$C$29-((-'INPUT DATA'!G23*$C$25*$C$24)/0.29307107))*($C$26+$C$27)/($C$18*$C$19)))-32)/1.8 -> 8.885381522 | C39: 12.11461848 | D39: 21.41638945 | E39: ='INPUT DATA'!C23 -> 19.04645161 | F39: =(($C$20-(($C$28-$C$29-((-'INPUT DATA'!H23*$C$25*$C$24)/0.29307107))*($C$26+$C$27)/($C$18*$C$19)))-32)/1.8 -> 5.259790801 | G39: ='INPUT DATA'!D23 -> 18.24741935 | H39: ='INPUT DATA'!F23 -> 86.86903226 | I39: ='INPUT DATA'!E23 -> 76.22741935 | J39: -0.07508563461 | K39: -0.2977903935 | L39: 24.77003577 | M39: 44.11618266 | N39: err | O39: err | P39: 79.70374893 | Q39: 20.3811719 | R39: xhx | S39: xhx | T39: err | U39: err | V39: err | W39: err | X39: err | Y39: err | Z39: err | AA39: err | AB39: err | AC39: err | AD39: err | AE39: err | AF39: err | AG39: err | AH39: 79.70374893 | AI39: 20.3811719 | AJ39: err | AK39: err
A40: 9 | B40: =(($C$20-(($C$28-$C$29-((-'INPUT DATA'!G24*$C$25*$C$24)/0.29307107))*($C$26+$C$27)/($C$18*$C$19)))-32)/1.8 -> 11.58001274 | C40: 9.419987261 | D40: 19.79333333 | E40: ='INPUT DATA'!C24 -> 19.79333333 | F40: =(($C$20-(($C$28-$C$29-((-'INPUT DATA'!H24*$C$25*$C$24)/0.29307107))*($C$26+$C$27)/($C$18*$C$19)))-32)/1.8 -> 7.183244884 | G40: ='INPUT DATA'!D24 -> 19.03933333 | H40: ='INPUT DATA'!F24 -> 88.38166667 | I40: ='INPUT DATA'!E24 -> 82.61633333 | J40: -0.1307816836 | K40: -0.1307816836 | L40: 30.5980365 | M40: 30.5980365 | N40: err | O40: err | P40: err | Q40: err | R40: xhx | S40: xhx | T40: err | U40: err | V40: xhx | W40: xhx | X40: err | Y40: err | Z40: err | AA40: err | AB40: err | AC40: err | AD40: err | AE40: err | AF40: err | AG40: err | AH40: err | AI40: err | AJ40: err | AK40: err
A41: 10 | B41: =(($C$20-(($C$28-$C$29-((-'INPUT DATA'!G25*$C$25*$C$24)/0.29307107))*($C$26+$C$27)/($C$18*$C$19)))-32)/1.8 -> 13.71263551 | C41: 7.287364492 | D41: 21.48094758 | E41: ='INPUT DATA'!C25 -> 16.77516129 | F41: =(($C$20-(($C$28-$C$29-((-'INPUT DATA'!H25*$C$25*$C$24)/0.29307107))*($C$26+$C$27)/($C$18*$C$19)))-32)/1.8 -> 10.05223298 | G41: ='INPUT DATA'!D25 -> 15.91935484 | H41: ='INPUT DATA'!F25 -> 85.11 | I41: ='INPUT DATA'!E25 -> 75.99354839 | J41: -0.09387495135 | K41: -0.6100611266 | L41: 23.90905195 | M41: 67.84165733 | N41: err | O41: err | P41: 77.72883625 | Q41: 20.42231591 | R41: xhx | S41: xhx | T41: err | U41: err | V41: err | W41: err | X41: err | Y41: err | Z41: err | AA41: err | AB41: err | AC41: err | AD41: err | AE41: err | AF41: err | AG41: err | AH41: 77.72883625 | AI41: 20.42231591 | AJ41: err | AK41: err
A42: 11 | B42: =(($C$20-(($C$28-$C$29-((-'INPUT DATA'!G26*$C$25*$C$24)/0.29307107))*($C$26+$C$27)/($C$18*$C$19)))-32)/1.8 -> 16.70885782 | C42: 4.291142175 | D42: 19.51980884 | E42: ='INPUT DATA'!C26 -> 15.22866667 | F42: =(($C$20-(($C$28-$C$29-((-'INPUT DATA'!H26*$C$25*$C$24)/0.29307107))*($C$26+$C$27)/($C$18*$C$19)))-32)/1.8 -> 13.23828065 | G42: ='INPUT DATA'!D26 -> 13.54833333 | H42: ='INPUT DATA'!F26 -> 85.108 | I42: ='INPUT DATA'!E26 -> 70.441 | J42: -0.1145655781 | K42: -0.4071368043 | L42: 23.29878055 | M42: 48.19893247 | N42: err | O42: err | P42: err | Q42: err | R42: xhx | S42: xhx | T42: err | U42: err | V42: err | W42: err | X42: err | Y42: err | Z42: err | AA42: err | AB42: err | AC42: err | AD42: err | AE42: err | AF42: err | AG42: err | AH42: err | AI42: err | AJ42: err | AK42: err
A43: 12 | B43: =(($C$20-(($C$28-$C$29-((-'INPUT DATA'!G27*$C$25*$C$24)/0.29307107))*($C$26+$C$27)/($C$18*$C$19)))-32)/1.8 -> 17.25022389 | C43: 3.749776115 | D43: 16.33880837 | E43: ='INPUT DATA'!C27 -> 12.58903226 | F43: =(($C$20-(($C$28-$C$29-((-'INPUT DATA'!H27*$C$25*$C$24)/0.29307107))*($C$26+$C$27)/($C$18*$C$19)))-32)/1.8 -> 14.65106837 | G43: ='INPUT DATA'!D27 -> 10.98903226 | H43: ='INPUT DATA'!F27 -> 82.92935484 | I43: ='INPUT DATA'!E27 -> 69.56419355 | J43: -0.1197142305 | K43: -0.400277707 | L43: 20.91685616 | M43: 44.18380425 | N43: err | O43: err | P43: err | Q43: err | R43: 69.56419355 | S43: 16.33880837 | T43: err | U43: err | V43: err | W43: err | X43: =IF(E43<J43*(($P$25-L43)/(J43-$O$25))+L43,"err",IF(($P$25-L43)/(J43-$O$25)<$S$21,"err",IF(($P$25-L43)/(J43-$O$25)>$T$25,"err",IF(G43>J43*(($P$25-L43)/(J43-$O$25))+L43,IF(G43<$O$25*H43+$P$25,"err","xhx"),($P$25-L43)/(J43-$O$25))))) -> err | Y43: err | Z43: err | AA43: err | AB43: err | AC43: err | AD43: err | AE43: err | AF43: err | AG43: err | AH43: err | AI43: err | AJ43: err | AK43: err
B45: Dolžina daljice
A47: month | B47: a | C47: a' | D47: xb | E47: xr | F47: xc | G47: xc' | H47: xv | I47: xtm | J47: xcool | K47: xQ | L47: kontrola
A48: 1 | B48: =SQRT((I32-H32)^2+(G32-E32)^2) -> 11.30264853 | C48: =SQRT((I32-H32)^2+(G32-D32)^2) -> 12.34286783 | D48: =IF(R32="xhx",0,SQRT((H32-R32)^2+(G32-S32)^2)) -> 12.34286783 | E48: =IF(AH32="xhx",0,IF(D48=C48,0,IF(AH32="err",SQRT((I32-(IF(R32="xhx",H32,R32)))^2+(D32-(IF(S32="xhx",G32,S32)))^2),SQRT((AH32-(IF(R32="xhx",H32,R32)))^2+(AI32-(IF(S32="xhx",G32,S32)))^2)))) -> 0 | F48: =IF(N32="err",0,IF(N32="xhx",IF(T32="xhx",0,IF(OR(AJ32="err",AJ32="xhx"),IF(T32="err",SQRT((H32-I32)^2+(G32-E32)^2),SQRT((H32-T32)^2+(G32-U32)^2)),IF(T32="err",SQRT((AJ32-I32)^2+(AK32-E32)^2),IF(T32>$T$20,SQRT((T32-I32)^2+(U32-E32)^2),SQRT((AJ32-T32)^2+(AK32-U32)^2))))),IF(T32="err",SQRT((N32-I32)^2+(O32-E32)^2),SQRT((N32-T32)^2+(O32-U32)^2)))) -> 0 | G48: =IF(P32="err",0,IF(P32="xhx",IF(T32="xhx",0,IF(OR(AJ32="err",AJ32="xhx"),IF(T32="err",SQRT((H32-I32)^2+(G32-E32)^2),SQRT((H32-T32)^2+(G32-U32)^2)),IF(T32="err",SQRT((AJ32-I32)^2+(AK32-E32)^2),IF(T32>$T$20,SQRT((T32-I32)^2+(U32-D32)^2),SQRT((AJ32-T32)^2+(AK32-U32)^2))))),IF(T32="err",SQRT((P32-I32)^2+(Q32-D32)^2),SQRT((P32-T32)^2+(Q32-U32)^2)))) -> 0 | H48: =IF(AND(AB32="err",X32="err"),0,IF(Z32="xhx",0,IF(Z32="err",IF(OR(X32="err",X32="xhx"),IF(AB32="xhx",IF(G32<$O$25*H32+$P$25,0,SQRT((H32-I32)^2+(G32-E32)^2)),SQRT((AB32-I32)^2+(AC32-E32)^2)),IF(AB32="xhx",SQRT((H32-X32)^2+(G32-Y32)^2),SQRT((AB32-X32)^2+(AC32-Y32)^2))),IF(OR(X32="xhx",AB32="xhx"),SQRT((Z32-H32)^2+(AA32-G32)^2),IF(X32="err",SQRT((AB32-Z32)^2+(AC32-AA32)^2),SQRT((X32-Z32)^2+(Y32-AA32)^2)))))) -> 0 | I48: =IF(D48=C48,0,IF(T32="err",0,IF(T32="xhx",IF(V32="xhx",0,IF(OR(X32="err",X32="xhx"),IF(V32="err",IF(T32=$S$19,0,SQRT((H32-I32)^2+(G32-E32)^2)),SQRT((H32-V32)^2+(G32-W32)^2)),IF(V32="err",IF(T32=$S$19,0,SQRT((X32-I32)^2+(Y32-E32)^2)),IF(V32<$T$22,SQRT((X32-V32)^2+(Y32-W32)^2),SQRT((X32-I32)^2+(Y32-E32)^2))))),IF(V32="err",IF(T32=$S$19,0,IF(T32=AJ32,SQRT((X32-AJ32)^2+(Y32-AK32)^2),SQRT((T32-I32)^2+(U32-E32)^2)+IF(OR(AJ32="err",AH32<$U$19),0,SQRT((X32-AJ32)^2+(Y32-AK32)^2)))),IF(T32=$S$19,0,SQRT((T32-V32)^2+(U32-W32)^2)+IF(OR(AJ32="err",AH32<$U$19),0,SQRT((X32-AJ32)^2+(Y32-AK32)^2))))))) -> 0 | J48: =IF(D48=C48,0,IF(AD32="xhx",0,IF(OR(AND(AF32="err",OR(Z32="err",Z32>$U$23),OR(V32="err",V32>$T$22),T32<>$S$19),AND(AF32="err",OR(Z32="err",Z32>$U$23),OR(V32="xhx",V32>$T$22),T32="xhx"),AND(AF32="err",OR(Z32="err",Z32>$U$23),OR(V32="err",V32>$T$22),T32="xhx")),0,IF(AD32="err",IF(AF32="err",IF(T32=$S$19,SQRT((I32-T32)^2+(U32-E32)^2),IF(Z32="err",IF(V32="err",SQRT((I32-H32)^2+(G32-E32)^2),SQRT((I32-V32)^2+(W32-E32)^2)),SQRT((I32-Z32)^2+(AA32-E32)^2))),SQRT((I32-AF32)^2+(AG32-E32)^2)),IF(AF32="err",IF(T32=$S$19,SQRT((AD32-T32)^2+(U32-AE32)^2),IF(Z32="err",IF(V32="err",SQRT((AD32-H32)^2+(G32-AE32)^2),SQRT((AD32-V32)^2+(W32-AE32)^2)),SQRT((AD32-Z32)^2+(AA32-AE32)^2))),SQRT((AD32-AF32)^2+(AG32-AE32)^2)))))) -> 0 | K48: =C48-D48-E48-G48-H48-I48-J48 -> -3.552713679e-15 | L48: =IF(AND(ROUND(SUM(D48,E48,G48,H48,I48,J48,K48)-C48,12)=0,K48>-0.000000000001),"OK",SUM(D48,E48,G48,H48,I48,J48,K48)-C48) -> OK
A49: 2 | B49: =SQRT((I33-H33)^2+(G33-E33)^2) -> 14.16893869 | C49: =SQRT((I33-H33)^2+(G33-D33)^2) -> 15.76004904 | D49: =IF(R33="xhx",0,SQRT((H33-R33)^2+(G33-S33)^2)) -> 2.134869403 | E49: =IF(AH33="xhx",0,IF(D49=C49,0,IF(AH33="err",SQRT((I33-(IF(R33="xhx",H33,R33)))^2+(D33-(IF(S33="xhx",G33,S33)))^2),SQRT((AH33-(IF(R33="xhx",H33,R33)))^2+(AI33-(IF(S33="xhx",G33,S33)))^2)))) -> 13.62517964 | F49: 0 | G49: =IF(P33="err",0,IF(P33="xhx",IF(T33="xhx",0,IF(OR(AJ33="err",AJ33="xhx"),IF(T33="err",SQRT((H33-I33)^2+(G33-E33)^2),SQRT((H33-T33)^2+(G33-U33)^2)),IF(T33="err",SQRT((AJ33-I33)^2+(AK33-E33)^2),IF(T33>$T$20,SQRT((T33-I33)^2+(U33-D33)^2),SQRT((AJ33-T33)^2+(AK33-U33)^2))))),IF(T33="err",SQRT((P33-I33)^2+(Q33-D33)^2),SQRT((P33-T33)^2+(Q33-U33)^2)))) -> 0 | H49: 0 | I49: 0 | J49: =IF(D49=C49,0,IF(AD33="xhx",0,IF(OR(AND(AF33="err",OR(Z33="err",Z33>$U$23),OR(V33="err",V33>$T$22),T33<>$S$19),AND(AF33="err",OR(Z33="err",Z33>$U$23),OR(V33="xhx",V33>$T$22),T33="xhx"),AND(AF33="err",OR(Z33="err",Z33>$U$23),OR(V33="err",V33>$T$22),T33="xhx")),0,IF(AD33="err",IF(AF33="err",IF(T33=$S$19,SQRT((I33-T33)^2+(U33-E33)^2),IF(Z33="err",IF(V33="err",SQRT((I33-H33)^2+(G33-E33)^2),SQRT((I33-V33)^2+(W33-E33)^2)),SQRT((I33-Z33)^2+(AA33-E33)^2))),SQRT((I33-AF33)^2+(AG33-E33)^2)),IF(AF33="err",IF(T33=$S$19,SQRT((AD33-T33)^2+(U33-AE33)^2),IF(Z33="err",IF(V33="err",SQRT((AD33-H33)^2+(G33-AE33)^2),SQRT((AD33-V33)^2+(W33-AE33)^2)),SQRT((AD33-Z33)^2+(AA33-AE33)^2))),SQRT((AD33-AF33)^2+(AG33-AE33)^2)))))) -> 0 | K49: =C49-D49-E49-G49-H49-I49-J49 -> 1.776356839e-15 | L49: =IF(AND(ROUND(SUM(D49,E49,G49,H49,I49,J49,K49)-C49,12)=0,K49>-0.000000000001),"OK",SUM(D49,E49,G49,H49,I49,J49,K49)-C49) -> OK
A50: 3 | B50: 13.10289025 | C50: 15.92721722 | D50: 0 | E50: 15.92721722 | F50: 0 | G50: 0 | H50: 0 | I50: 0 | J50: 0 | K50: 0 | L50: OK
A51: 4 | B51: 8.24329229 | C51: 11.4713498 | D51: 0 | E51: 11.04135831 | F51: 0 | G51: 0.4299914899 | H51: 0 | I51: 0 | J51: 0 | K51: -4.996003611e-16 | L51: OK
A52: 5 | B52: 10.04853976 | C52: 13.34929479 | D52: 0 | E52: 11.62059696 | F52: 0 | G52: 1.728697835 | H52: 0 | I52: 0 | J52: 0 | K52: -6.661338148e-16 | L52: OK
A53: 6 | B53: 10.44122775 | C53: 11.75377608 | D53: 0 | E53: 11.46183007 | F53: 0 | G53: =IF(P37="err",0,IF(P37="xhx",IF(T37="xhx",0,IF(OR(AJ37="err",AJ37="xhx"),IF(T37="err",SQRT((H37-I37)^2+(G37-E37)^2),SQRT((H37-T37)^2+(G37-U37)^2)),IF(T37="err",SQRT((AJ37-I37)^2+(AK37-E37)^2),IF(T37>$T$20,SQRT((T37-I37)^2+(U37-D37)^2),SQRT((AJ37-T37)^2+(AK37-U37)^2))))),IF(T37="err",SQRT((P37-I37)^2+(Q37-D37)^2),SQRT((P37-T37)^2+(Q37-U37)^2)))) -> 0.2919460067 | H53: 0 | I53: 0 | J53: 0 | K53: 0 | L53: OK
A54: 7 | B54: 10.80740037 | C54: 11.78231772 | D54: 0 | E54: 10.40488605 | F54: 0 | G54: 1.37743167 | H54: 0 | I54: 0 | J54: 0 | K54: 2.220446049e-16 | L54: OK
A55: 8 | B55: 10.67156866 | C55: 11.10343625 | D55: 0 | E55: 7.476241376 | F55: 0 | G55: 3.627194878 | H55: 0 | I55: 0 | J55: 0 | K55: 0 | L55: OK
A56: 9 | B56: 5.814428987 | C56: 5.814428987 | D56: 0 | E56: 5.814428987 | F56: 0 | G56: 0 | H56: 0 | I56: 0 | J56: 0 | K56: 0 | L56: OK
A57: 10 | B57: 9.156532897 | C57: 10.67899826 | D57: 0 | E57: 8.646284561 | F57: 0 | G57: 2.032713699 | H57: 0 | I57: 0 | J57: 0 | K57: 8.881784197e-16 | L57: OK
A58: 11 | B58: 14.7629404 | C58: 15.83601619 | D58: 0 | E58: 15.83601619 | F58: 0 | G58: 0 | H58: 0 | I58: 0 | J58: 0 | K58: 0 | L58: OK
A59: 12 | B59: 13.46059197 | C59: 14.39609811 | D59: 14.39609811 | E59: 0 | F59: 0 | G59: 0 | H59: 0 | I59: 0 | J59: 0 | K59: 0 | L59: OK
A60: month | D60: ratio | E60: ratio | F60: ratio | G60: ratio | H60: ratio | I60: ratio | J60: ratio | K60: ratio | L60: kontrola | N60: yearly values
A61: 1 | D61: =D48/$C48 -> 1 | E61: 0 | F61: =F48/B48 -> 0 | G61: =G48/$C48 -> 0 | H61: 0 | I61: =I48/C48 -> 0 | J61: =J48/C48 -> 0 | K61: =K48/C48 -> -2.878353498e-16 | L61: =IF(AND(ROUND(SUM(D61,E61,G61,H61,I61,J61,K61)-1,12)=0,K61>-0.000000000001),"OK",SUM(D61,E61,G61,H61,I61,J61,K61)-1) -> OK | N61: Q= | O61: =(K61*31+K62*28+K63*31+K64*30+K65*31+K66*30+K67*31+K68*31+K69*30+K70*31+K71*30+K72*31)*(100/365) -> -1.495317977e-15 | P61: =100-P62-P63-P64-P65-P66-P67-P68 -> 0
A62: 2 | D62: 0.135460835 | E62: 0.864539165 | F62: 0 | G62: 0 | H62: 0 | I62: 0 | J62: =J49/C49 -> 0 | K62: =K49/C49 -> 1.127126467e-16 | L62: =IF(AND(ROUND(SUM(D62,E62,G62,H62,I62,J62,K62)-1,12)=0,K62>-0.000000000001),"OK",SUM(D62,E62,G62,H62,I62,J62,K62)-1) -> OK | N62: A= | O62: =(J61*31+J62*28+J63*31+J64*30+J65*31+J66*30+J67*31+J68*31+J69*30+J70*31+J71*30+J72*31)*(100/365) -> 0 | P62: =SUM(J61:J72)*(100/12) -> 0
A63: 3 | D63: 0 | E63: 1 | F63: 0 | G63: 0 | H63: 0 | I63: 0 | J63: 0 | K63: 0 | L63: OK | N63: M= | O63: =(I61*31+I62*28+I63*31+I64*30+I65*31+I66*30+I67*31+I68*31+I69*30+I70*31+I71*30+I72*31)*(100/365) -> 0 | P63: =SUM(I61:I72)*(100/12) -> 0
A64: 4 | D64: 0 | E64: 0.9625160511 | F64: 0 | G64: 0.03748394891 | H64: 0 | I64: 0 | J64: 0 | K64: -4.355201173e-17 | L64: OK | N64: V = | O64: =(H61*31+H62*28+H63*31+H64*30+H65*31+H66*30+H67*31+H68*31+H69*30+H70*31+H71*30+H72*31)*(100/365) -> 0 | P64: =SUM(H61:H72)*(100/12) -> 0
A65: 5 | D65: 0 | E65: 0.8705026848 | F65: 0 | G65: 0.1294973152 | H65: 0 | I65: 0 | J65: 0 | K65: -4.990029999e-17 | L65: OK | N65: Csh= | O65: =(F61*31+F62*28+F63*31+F64*30+F65*31+F66*30+F67*31+F68*31+F69*30+F70*31+F71*30+F72*31)*(100/365) -> 0 | P65: =SUM(F61:F72)*(100/12) -> 0
A66: 6 | D66: 0 | E66: 0.9751615136 | F66: 0 | G66: 0.02483848635 | H66: 0 | I66: 0 | J66: 0 | K66: 0 | L66: OK | N66: Csn = | O66: =(G61*31+G62*28+G63*31+G64*30+G65*31+G66*30+G67*31+G68*31+G69*30+G70*31+G71*30+G72*31)*(100/365)-O65 -> 6.996114544 | P66: =SUM(G61:G72)*(100/12)-P65 -> 6.88122057
A67: 7 | D67: 0 | E67: 0.8830933181 | F67: 0 | G67: 0.1169066819 | H67: 0 | I67: 0 | J67: 0 | K67: 1.884557947e-17 | L67: OK | N67: R = | O67: =(E61*31+E62*28+E63*31+E64*30+E65*31+E66*30+E67*31+E68*31+E69*30+E70*31+E71*30+E72*31)*(100/365) -> 74.97843248 | P67: =SUM(E61:E72)*(100/12) -> 75.32327247
A68: 8 | D68: 0 | E68: 0.6733268157 | F68: 0 | G68: 0.3266731843 | H68: 0 | I68: 0 | J68: 0 | K68: 0 | L68: OK | N68: H = | O68: =(D61*31+D62*28+D63*31+D64*30+D65*31+D66*30+D67*31+D68*31+D69*30+D70*31+D71*30+D72*31)*(100/365) -> 18.02545298 | P68: =SUM(D61:D72)*(100/12) -> 17.79550696
A69: 9 | D69: 0 | E69: 1 | F69: 0 | G69: 0 | H69: 0 | I69: 0 | J69: 0 | K69: 0 | L69: OK | N69: kontrola | O69: =IF(SUM(O61:O68)=100,"OK",SUM(O61:O68)) -> OK
A70: 10 | D70: 0 | E70: 0.8096531482 | F70: 0 | G70: 0.1903468518 | H70: 0 | I70: 0 | J70: 0 | K70: 8.317057444e-17 | L70: OK
A71: 11 | D71: 0 | E71: 1 | F71: 0 | G71: 0 | H71: 0 | I71: 0 | J71: 0 | K71: 0 | L71: OK
A72: 12 | D72: 1 | E72: 0 | F72: 0 | G72: 0 | H72: 0 | I72: 0 | J72: 0 | K72: 0 | L72: OK
C74: monthly values | D74: H | E74: R | F74: CSh | G74: CSn | H74: V | I74: M | J74: A | K74: Q | L74: Sh
C75: JAN | D75: =$D61*100 -> 100 | E75: =$E61*100 -> 0 | F75: =$F61*100 -> 0 | G75: =($G61-F61)*100 -> 0 | H75: =$H61*100 -> 0 | I75: =$I61*100 -> 0 | J75: =$J61*100 -> 0 | K75: =$K61*100 -> -2.878353498e-14 | L75: =F75+H75+I75+J75+K75 -> -2.878353498e-14
C76: FEB | D76: 13.5460835 | E76: 86.4539165 | F76: 0 | G76: 0 | H76: 0 | I76: =$I62*100 -> 0 | J76: =$J62*100 -> 0 | K76: =$K62*100 -> 1.127126467e-14 | L76: =F76+H76+I76+J76+K76 -> 1.127126467e-14
C77: MAR | D77: 0 | E77: 100 | F77: 0 | G77: 0 | H77: 0 | I77: 0 | J77: 0 | K77: 0 | L77: 0
C78: APR | D78: 0 | E78: 96.25160511 | F78: 0 | G78: 3.748394891 | H78: 0 | I78: 0 | J78: 0 | K78: -4.355201173e-15 | L78: -4.355201173e-15
C79: MAY | D79: 0 | E79: 87.05026848 | F79: 0 | G79: 12.94973152 | H79: 0 | I79: 0 | J79: 0 | K79: -4.990029999e-15 | L79: -4.990029999e-15
C80: JUN | D80: 0 | E80: 97.51615136 | F80: 0 | G80: 2.483848635 | H80: 0 | I80: 0 | J80: 0 | K80: 0 | L80: 0
C81: JUL | D81: 0 | E81: 88.30933181 | F81: 0 | G81: 11.69066819 | H81: 0 | I81: 0 | J81: 0 | K81: 1.884557947e-15 | L81: 1.884557947e-15
C82: AUG | D82: 0 | E82: 67.33268157 | F82: 0 | G82: 32.66731843 | H82: 0 | I82: 0 | J82: 0 | K82: 0 | L82: 0
C83: SEP | D83: 0 | E83: 100 | F83: 0 | G83: 0 | H83: 0 | I83: 0 | J83: 0 | K83: 0 | L83: 0
C84: OCT | D84: 0 | E84: 80.96531482 | F84: 0 | G84: 19.03468518 | H84: 0 | I84: 0 | J84: 0 | K84: 8.317057444e-15 | L84: 8.317057444e-15
C85: NOV | D85: 0 | E85: 100 | F85: 0 | G85: 0 | H85: 0 | I85: 0 | J85: 0 | K85: 0 | L85: 0
C86: DEC | D86: 100 | E86: 0 | F86: 0 | G86: 0 | H86: 0 | I86: 0 | J86: 0 | K86: 0 | L86: 0

Sheet Data call (hidden)
A1: Column1 | B1: Column2 | C1: Column3 | D1: Column4 | F1: Column1 | G1: Column2 | H1: Column3 | I1: Column4 | K1: T | M1: RH | O1: G | R1: averages
A2: Date&Time (UTC) | B2: Dry bulb temperature (deg. C) | C2: Relative Humidity (%) | D2: Global horizontal irradiance (W/m2) | F2: Date&Time (UTC) | G2: T | H2: RH | I2: G | K2: min | L2: max | M2: min | N2: max | O2: avg | R2: T | T2: RH | V2: G
A3: 01/01/2007 00:00:00 | B3: 12.25 | C3: 70.41 | D3: 0.00 | F3: =A3 -> 01/01/2007 00:00:00 | G3: =VALUE(B3) -> 12.25 | H3: =VALUE(C3) -> 70.41 | I3: =VALUE(D3) -> 0 | J3: 0 | K3: =MIN(G3:G26) -> 12.25 | L3: =MAX(G3:G26) -> 15.17 | M3: =MIN(H11:H26) -> 65.06 | N3: =MAX(H3:H26) -> 76.99 | O3: =AVERAGEIF(I3:I26,"<>0") -> 177.875 | R3: min | S3: max | T3: min | U3: max | V3: avg | W3: max
A4: 01/01/2007 01:00:00 | B4: 12.67 | C4: 71.13 | D4: 0.00 | F4: =A4 -> 01/01/2007 01:00:00 | G4: =VALUE(B4) -> 12.67 | H4: =VALUE(C4) -> 71.13 | I4: =VALUE(D4) -> 0 | J4: 1 | Q4: jan | R4: =AVERAGE(K3:K746) -> 11.69322581 | S4: =AVERAGE(L3:L746) -> 12.8816129 | T4: =AVERAGE(M3:M746) -> 73.81193548 | U4: =AVERAGE(N3:N746) -> 85.05193548 | V4: =AVERAGE(O3:O746) -> 136.9734543 | W4: =MAX(O3:O746) -> 231.625
A5: 01/01/2007 02:00:00 | B5: 13.08 | C5: 71.84 | D5: 0.00 | F5: 01/01/2007 02:00:00 | G5: =VALUE(B5) -> 13.08 | H5: 71.84 | I5: 0 | J5: 2 | Q5: feb | R5: =AVERAGE(K747:K1418) -> 9.720357143 | S5: =AVERAGE(L747:L1418) -> 11.13071429 | T5: =AVERAGE(M747:M1418) -> 71.68821429 | U5: =AVERAGE(N747:N1418) -> 85.78678571 | V5: =AVERAGE(O747:O1418) -> 196.0559524 | W5: =MAX(O747:O1418) -> 357.1
A6: 01/01/2007 03:00:00 | B6: 13.50 | C6: 72.56 | D6: 0.00 | F6: 01/01/2007 03:00:00 | G6: 13.5 | H6: 72.56 | I6: 0 | J6: 3 | Q6: mar | R6: =AVERAGE(K1419:K2139) -> 10.85419355 | S6: =AVERAGE(L1419:L2139) -> 12.06903226 | T6: =AVERAGE(M1419:M2139) -> 72.90580645 | U6: =AVERAGE(N1419:N2139) -> 85.95225806 | V6: =AVERAGE(O1419:O2139) -> 274.5827957 | W6: =MAX(O1419:O2139) -> 415.5454545
A7: 01/01/2007 04:00:00 | B7: 13.92 | C7: 73.27 | D7: 0.00 | F7: 01/01/2007 04:00:00 | G7: 13.92 | H7: 73.27 | I7: 0 | J7: 4 | Q7: apr | R7: =AVERAGE(K2163:K2882) -> 12.65733333 | S7: =AVERAGE(L2163:L2882) -> 13.63033333 | T7: =AVERAGE(M2163:M2882) -> 78.84466667 | U7: =AVERAGE(N2163:N2882) -> 87.03033333 | V7: =AVERAGE(O2163:O2882) -> 423.7550611 | W7: =MAX(O2163:O2882) -> 525.9166667
A8: 01/01/2007 05:00:00 | B8: 14.33 | C8: 73.99 | D8: 0.00 | F8: 01/01/2007 05:00:00 | G8: 14.33 | H8: 73.99 | I8: 0 | J8: 5 | Q8: may | R8: =AVERAGE(K2883:K3603) -> 12.7383871 | S8: =AVERAGE(L2883:L3603) -> 13.75387097 | T8: =AVERAGE(M2883:M3603) -> 75.61677419 | U8: =AVERAGE(N2883:N3603) -> 85.61387097 | V8: =AVERAGE(O2883:O3603) -> 418.1463134 | W8: =MAX(O2883:O3603) -> 571.0714286
A9: 01/01/2007 06:00:00 | B9: 14.75 | C9: 74.70 | D9: 0.00 | F9: 01/01/2007 06:00:00 | G9: 14.75 | H9: 74.7 | I9: 0 | J9: 6 | Q9: jun | R9: =AVERAGE(K3627:K4346) -> 14.983 | S9: =AVERAGE(L3627:L4346) -> 16.209 | T9: =AVERAGE(M3627:M4346) -> 79.48233333 | U9: =AVERAGE(N3627:N4346) -> 89.85133333 | V9: =AVERAGE(O3627:O4346) -> 414.8673016 | W9: =MAX(O3627:O4346) -> 577.7142857
A10: 01/01/2007 07:00:00 | B10: 15.17 | C10: 75.42 | D10: 0.00 | F10: 01/01/2007 07:00:00 | G10: 15.17 | H10: 75.42 | I10: 0 | J10: 7 | Q10: jul | R10: =AVERAGE(K4347:K5067) -> 16.14870968 | S10: =AVERAGE(L4347:L5067) -> 17.18354839 | T10: =AVERAGE(M4347:M5067) -> 77.90129032 | U10: =AVERAGE(N4347:N5067) -> 88.65903226 | V10: =AVERAGE(O4347:O5067) -> 390.6991935 | W10: =MAX(O4347:O5067) -> 595.6428571
A11: 01/01/2007 08:00:00 | B11: 14.10 | C11: 74.02 | D11: 0.00 | F11: 01/01/2007 08:00:00 | G11: 14.1 | H11: 74.02 | I11: 0 | J11: 8 | Q11: aug | R11: =AVERAGE(K5091:K5811) -> 18.24741935 | S11: =AVERAGE(L5091:L5811) -> 19.04645161 | T11: =AVERAGE(M5091:M5811) -> 76.22741935 | U11: =AVERAGE(N5091:N5811) -> 86.86903226 | V11: =AVERAGE(O5091:O5811) -> 418.500257 | W11: =MAX(O5091:O5811) -> 542.9285714
A12: 01/01/2007 09:00:00 | B12: 14.14 | C12: 75.01 | D12: 85.00 | F12: 01/01/2007 09:00:00 | G12: 14.14 | H12: 75.01 | I12: 85 | J12: 9 | Q12: sep | R12: =AVERAGE(K5835:K6554) -> 19.03933333 | S12: =AVERAGE(L5835:L6554) -> 19.79333333 | T12: =AVERAGE(M5835:M6554) -> 82.61633333 | U12: =AVERAGE(N5835:N6554) -> 88.38166667 | V12: =AVERAGE(O5835:O6554) -> 326.0219697 | W12: =MAX(O5835:O6554) -> 476.9166667
A13: 01/01/2007 10:00:00 | B13: 14.17 | C13: 76.00 | D13: 203.00 | F13: 01/01/2007 10:00:00 | G13: 14.17 | H13: 76 | I13: 203 | J13: 10 | Q13: oct | R13: =AVERAGE(K6555:K7275) -> 15.91935484 | S13: =AVERAGE(L6555:L7275) -> 16.77516129 | T13: =AVERAGE(M6555:M7275) -> 75.99354839 | U13: =AVERAGE(N6555:N7275) -> 85.11 | V13: =AVERAGE(O6555:O7275) -> 252.8315086 | W13: =MAX(O6555:O7275) -> 378.4545455
A14: 01/01/2007 11:00:00 | B14: 14.20 | C14: 76.99 | D14: 296.00 | F14: 01/01/2007 11:00:00 | G14: 14.2 | H14: 76.99 | I14: 296 | J14: 11 | Q14: nov | R14: =AVERAGE(K7299:K8018) -> 13.54833333 | S14: =AVERAGE(L7299:L8018) -> 15.22866667 | T14: =AVERAGE(M7299:M8018) -> 70.441 | U14: =AVERAGE(N7299:N8018) -> 85.108 | V14: =AVERAGE(O7299:O8018) -> 150.0027778 | W14: =MAX(O7299:O8018) -> 269.1111111
A15: 01/01/2007 12:00:00 | B15: 14.05 | C15: 73.83 | D15: 146.00 | F15: 01/01/2007 12:00:00 | G15: 14.05 | H15: 73.83 | I15: 146 | J15: 12 | Q15: dec | R15: =AVERAGE(K8019:K8739) -> 10.98903226 | S15: =AVERAGE(L8019:L8739) -> 12.58903226 | T15: =AVERAGE(M8019:M8739) -> 69.56419355 | U15: =AVERAGE(N8019:N8739) -> 82.92935484 | V15: =AVERAGE(O8019:O8739) -> 131.4233871 | W15: =MAX(O8019:O8739) -> 220.625
A16: 01/01/2007 13:00:00 | B16: 13.91 | C16: 70.68 | D16: 138.00 | F16: 01/01/2007 13:00:00 | G16: 13.91 | H16: 70.68 | I16: 138 | J16: 13
A17: 01/01/2007 14:00:00 | B17: 13.76 | C17: 67.52 | D17: 283.00 | F17: 01/01/2007 14:00:00 | G17: 13.76 | H17: 67.52 | I17: 283 | J17: 14
A18: 01/01/2007 15:00:00 | B18: 13.60 | C18: 67.06 | D18: 201.00 | F18: 01/01/2007 15:00:00 | G18: 13.6 | H18: 67.06 | I18: 201 | J18: 15
A19: 01/01/2007 16:00:00 | B19: 13.44 | C19: 66.60 | D19: 71.00 | F19: 01/01/2007 16:00:00 | G19: 13.44 | H19: 66.6 | I19: 71 | J19: 16
A20: 01/01/2007 17:00:00 | B20: 13.28 | C20: 66.14 | D20: 0.00 | F20: 01/01/2007 17:00:00 | G20: 13.28 | H20: 66.14 | I20: 0 | J20: 17
A21: 01/01/2007 18:00:00 | B21: 13.17 | C21: 65.91 | D21: 0.00 | F21: 01/01/2007 18:00:00 | G21: 13.17 | H21: 65.91 | I21: 0 | J21: 18
A22: 01/01/2007 19:00:00 | B22: 13.06 | C22: 65.67 | D22: 0.00 | F22: 01/01/2007 19:00:00 | G22: 13.06 | H22: 65.67 | I22: 0 | J22: 19
A23: 01/01/2007 20:00:00 | B23: 12.95 | C23: 65.44 | D23: 0.00 | F23: 01/01/2007 20:00:00 | G23: 12.95 | H23: 65.44 | I23: 0 | J23: 20
A24: 01/01/2007 21:00:00 | B24: 12.90 | C24: 65.31 | D24: 0.00 | F24: 01/01/2007 21:00:00 | G24: 12.9 | H24: 65.31 | I24: 0 | J24: 21
A25: 01/01/2007 22:00:00 | B25: 12.84 | C25: 65.19 | D25: 0.00 | F25: 01/01/2007 22:00:00 | G25: 12.84 | H25: 65.19 | I25: 0 | J25: 22
A26: 01/01/2007 23:00:00 | B26: 12.79 | C26: 65.06 | D26: 0.00 | F26: 01/01/2007 23:00:00 | G26: 12.79 | H26: 65.06 | I26: 0 | J26: 23
A27: 02/01/2007 00:00:00 | B27: 12.60 | C27: 64.47 | D27: 0.00 | F27: 02/01/2007 00:00:00 | G27: 12.6 | H27: 64.47 | I27: 0 | J27: 0 | K27: =MIN(G27:G50) -> 11.55 | L27: =MAX(G27:G50) -> 12.6 | M27: =MIN(H27:H50) -> 63.28 | N27: =MAX(H27:H50) -> 77.92 | O27: =AVERAGEIF(I27:I50,"<>0") -> 215.25
A28: 02/01/2007 01:00:00 | B28: 12.42 | C28: 63.87 | D28: 0.00 | F28: 02/01/2007 01:00:00 | G28: 12.42 | H28: 63.87 | I28: 0 | J28: 1
A29: 02/01/2007 02:00:00 | B29: 12.24 | C29: 63.28 | D29: 0.00 | F29: 02/01/2007 02:00:00 | G29: 12.24 | H29: 63.28 | I29: 0 | J29: 2
A30: 02/01/2007 03:00:00 | B30: 12.17 | C30: 63.60 | D30: 0.00 | F30: 02/01/2007 03:00:00 | G30: 12.17 | H30: 63.6 | I30: 0 | J30: 3
A31: 02/01/2007 04:00:00 | B31: 12.10 | C31: 63.91 | D31: 0.00 | F31: 02/01/2007 04:00:00 | G31: 12.1 | H31: 63.91 | I31: 0 | J31: 4
A32: 02/01/2007 05:00:00 | B32: 12.03 | C32: 64.23 | D32: 0.00 | F32: 02/01/2007 05:00:00 | G32: 12.03 | H32: 64.23 | I32: 0 | J32: 5
A33: 02/01/2007 06:00:00 | B33: 12.00 | C33: 64.30 | D33: 0.00 | F33: 02/01/2007 06:00:00 | G33: 12 | H33: 64.3 | I33: 0 | J33: 6
A34: 02/01/2007 07:00:00 | B34: 11.98 | C34: 64.37 | D34: 0.00 | F34: 02/01/2007 07:00:00 | G34: 11.98 | H34: 64.37 | I34: 0 | J34: 7
A35: 02/01/2007 08:00:00 | B35: 11.95 | C35: 64.44 | D35: 0.00 | F35: 02/01/2007 08:00:00 | G35: 11.95 | H35: 64.44 | I35: 0 | J35: 8
A36: 02/01/2007 09:00:00 | B36: 11.97 | C36: 65.31 | D36: 71.00 | F36: 02/01/2007 09:00:00 | G36: 11.97 | H36: 65.31 | I36: 71 | J36: 9
A37: 02/01/2007 10:00:00 | B37: 11.98 | C37: 66.18 | D37: 192.00 | F37: 02/01/2007 10:00:00 | G37: 11.98 | H37: 66.18 | I37: 192 | J37: 10
A38: 02/01/2007 11:00:00 | B38: 11.99 | C38: 67.05 | D38: 239.00 | F38: 02/01/2007 11:00:00 | G38: 11.99 | H38: 67.05 | I38: 239 | J38: 11
A39: 02/01/2007 12:00:00 | B39: 11.84 | C39: 68.66 | D39: 344.00 | F39: 02/01/2007 12:00:00 | G39: 11.84 | H39: 68.66 | I39: 344 | J39: 12
A40: 02/01/2007 13:00:00 | B40: 11.70 | C40: 70.28 | D40: 338.00 | F40: 02/01/2007 13:00:00 | G40: 11.7 | H40: 70.28 | I40: 338 | J40: 13
A41: 02/01/2007 14:00:00 | B41: 11.55 | C41: 71.89 | D41: 282.00 | F41: 02/01/2007 14:00:00 | G41: 11.55 | H41: 71.89 | I41: 282 | J41: 14
A42: 02/01/2007 15:00:00 | B42: 11.62 | C42: 72.60 | D42: 182.00 | F42: 02/01/2007 15:00:00 | G42: 11.62 | H42: 72.6 | I42: 182 | J42: 15
A43: 02/01/2007 16:00:00 | B43: 11.69 | C43: 73.31 | D43: 74.00 | F43: 02/01/2007 16:00:00 | G43: 11.69 | H43: 73.31 | I43: 74 | J43: 16
A44: 02/01/2007 17:00:00 | B44: 11.76 | C44: 74.02 | D44: 0.00 | F44: 02/01/2007 17:00:00 | G44: 11.76 | H44: 74.02 | I44: 0 | J44: 17
A45: 02/01/2007 18:00:00 | B45: 11.88 | C45: 74.80 | D45: 0.00 | F45: 02/01/2007 18:00:00 | G45: 11.88 | H45: 74.8 | I45: 0 | J45: 18
A46: 02/01/2007 19:00:00 | B46: 12.01 | C46: 75.57 | D46: 0.00 | F46: 02/01/2007 19:00:00 | G46: 12.01 | H46: 75.57 | I46: 0 | J46: 19
A47: 02/01/2007 20:00:00 | B47: 12.13 | C47: 76.35 | D47: 0.00 | F47: 02/01/2007 20:00:00 | G47: 12.13 | H47: 76.35 | I47: 0 | J47: 20
A48: 02/01/2007 21:00:00 | B48: 12.28 | C48: 76.87 | D48: 0.00 | F48: 02/01/2007 21:00:00 | G48: 12.28 | H48: 76.87 | I48: 0 | J48: 21
A49: 02/01/2007 22:00:00 | B49: 12.43 | C49: 77.40 | D49: 0.00 | F49: 02/01/2007 22:00:00 | G49: 12.43 | H49: 77.4 | I49: 0 | J49: 22
A50: 02/01/2007 23:00:00 | B50: 12.58 | C50: 77.92 | D50: 0.00 | F50: 02/01/2007 23:00:00 | G50: 12.58 | H50: 77.92 | I50: 0 | J50: 23
A51: 03/01/2007 00:00:00 | B51: 12.70 | C51: 77.82 | D51: 0.00 | F51: 03/01/2007 00:00:00 | G51: 12.7 | H51: 77.82 | I51: 0 | J51: 0 | K51: =MIN(G51:G74) -> 12.7 | L51: =MAX(G51:G74) -> 14.29 | M51: =MIN(H51:H74) -> 77.61 | N51: =MAX(H51:H74) -> 93.67 | O51: =AVERAGEIF(I51:I74,"<>0") -> 172
A52: 03/01/2007 01:00:00 | B52: 12.82 | C52: 77.71 | D52: 0.00 | F52: 03/01/2007 01:00:00 | G52: 12.82 | H52: 77.71 | I52: 0 | J52: 1
A53: 03/01/2007 02:00:00 | B53: 12.94 | C53: 77.61 | D53: 0.00 | F53: 03/01/2007 02:00:00 | G53: 12.94 | H53: 77.61 | I53: 0 | J53: 2
A54: 03/01/2007 03:00:00 | B54: 13.03 | C54: 78.86 | D54: 0.00 | F54: 03/01/2007 03:00:00 | G54: 13.03 | H54: 78.86 | I54: 0 | J54: 3
A55: 03/01/2007 04:00:00 | B55: 13.11 | C55: 80.12 | D55: 0.00 | F55: 03/01/2007 04:00:00 | G55: 13.11 | H55: 80.12 | I55: 0 | J55: 4
A56: 03/01/2007 05:00:00 | B56: 13.20 | C56: 81.37 | D56: 0.00 | F56: 03/01/2007 05:00:00 | G56: 13.2 | H56: 81.37 | I56: 0 | J56: 5
A57: 03/01/2007 06:00:00 | B57: 13.27 | C57: 82.38 | D57: 0.00 | F57: 03/01/2007 06:00:00 | G57: 13.27 | H57: 82.38 | I57: 0 | J57: 6
A58: 03/01/2007 07:00:00 | B58: 13.34 | C58: 83.40 | D58: 0.00 | F58: 03/01/2007 07:00:00 | G58: 13.34 | H58: 83.4 | I58: 0 | J58: 7
A59: 03/01/2007 08:00:00 | B59: 13.41 | C59: 84.41 | D59: 0.00 | F59: 03/01/2007 08:00:00 | G59: 13.41 | H59: 84.41 | I59: 0 | J59: 8
A60: 03/01/2007 09:00:00 | B60: 13.44 | C60: 84.36 | D60: 23.00 | F60: 03/01/2007 09:00:00 | G60: 13.44 | H60: 84.36 | I60: 23 | J60: 9
A61: 03/01/2007 10:00:00 | B61: 13.46 | C61: 84.31 | D61: 151.00 | F61: 03/01/2007 10:00:00 | G61: 13.46 | H61: 84.31 | I61: 151 | J61: 10
A62: 03/01/2007 11:00:00 | B62: 13.49 | C62: 84.26 | D62: 257.00 | F62: 03/01/2007 11:00:00 | G62: 13.49 | H62: 84.26 | I62: 257 | J62: 11
A63: 03/01/2007 12:00:00 | B63: 13.55 | C63: 84.90 | D63: 207.00 | F63: 03/01/2007 12:00:00 | G63: 13.55 | H63: 84.9 | I63: 207 | J63: 12
A64: 03/01/2007 13:00:00 | B64: 13.61 | C64: 85.54 | D64: 287.00 | F64: 03/01/2007 13:00:00 | G64: 13.61 | H64: 85.54 | I64: 287 | J64: 13
A65: 03/01/2007 14:00:00 | B65: 13.67 | C65: 86.18 | D65: 262.00 | F65: 03/01/2007 14:00:00 | G65: 13.67 | H65: 86.18 | I65: 262 | J65: 14
A66: 03/01/2007 15:00:00 | B66: 13.78 | C66: 86.23 | D66: 155.00 | F66: 03/01/2007 15:00:00 | G66: 13.78 | H66: 86.23 | I66: 155 | J66: 15
A67: 03/01/2007 16:00:00 | B67: 13.90 | C67: 86.27 | D67: 34.00 | F67: 03/01/2007 16:00:00 | G67: 13.9 | H67: 86.27 | I67: 34 | J67: 16
A68: 03/01/2007 17:00:00 | B68: 14.01 | C68: 86.32 | D68: 0.00 | F68: =A68 -> 03/01/2007 17:00:00 | G68: =VALUE(B68) -> 14.01 | H68: =VALUE(C68) -> 86.32 | I68: =VALUE(D68) -> 0 | J68: 17
A69: 03/01/2007 18:00:00 | B69: 14.10 | C69: 87.41 | D69: 0.00 | F69: 03/01/2007 18:00:00 | G69: 14.1 | H69: 87.41 | I69: 0 | J69: 18
A70: 03/01/2007 19:00:00 | B70: 14.20 | C70: 88.50 | D70: 0.00 | F70: 03/01/2007 19:00:00 | G70: 14.2 | H70: 88.5 | I70: 0 | J70: 19
A71: 03/01/2007 20:00:00 | B71: 14.29 | C71: 89.59 | D71: 0.00 | F71: 03/01/2007 20:00:00 | G71: 14.29 | H71: 89.59 | I71: 0 | J71: 20
A72: 03/01/2007 21:00:00 | B72: 14.29 | C72: 90.95 | D72: 0.00 | F72: 03/01/2007 21:00:00 | G72: 14.29 | H72: 90.95 | I72: 0 | J72: 21
A73: 03/01/2007 22:00:00 | B73: 14.29 | C73: 92.31 | D73: 0.00 | F73: 03/01/2007 22:00:00 | G73: 14.29 | H73: 92.31 | I73: 0 | J73: 22
A74: 03/01/2007 23:00:00 | B74: 14.29 | C74: 93.67 | D74: 0.00 | F74: 03/01/2007 23:00:00 | G74: 14.29 | H74: 93.67 | I74: 0 | J74: 23
A75: 04/01/2007 00:00:00 | B75: 14.14 | C75: 91.14 | D75: 0.00 | F75: 04/01/2007 00:00:00 | G75: 14.14 | H75: 91.14 | I75: 0 | J75: 0 | K75: =MIN(G75:G98) -> 13.18 | L75: =MAX(G75:G98) -> 14.14 | M75: =MIN(H75:H98) -> 78.41 | N75: =MAX(H75:H98) -> 91.14 | O75: =AVERAGEIF(I75:I98,"<>0") -> 219.25
A76: 04/01/2007 01:00:00 | B76: 14.00 | C76: 88.61 | D76: 0.00 | F76: 04/01/2007 01:00:00 | G76: 14 | H76: 88.61 | I76: 0 | J76: 1
A77: 04/01/2007 02:00:00 | B77: 13.86 | C77: 86.08 | D77: 0.00 | F77: 04/01/2007 02:00:00 | G77: 13.86 | H77: 86.08 | I77: 0 | J77: 2
A78: 04/01/2007 03:00:00 | B78: 13.71 | C78: 85.47 | D78: 0.00 | F78: 04/01/2007 03:00:00 | G78: 13.71 | H78: 85.47 | I78: 0 | J78: 3
A79: 04/01/2007 04:00:00 | B79: 13.56 | C79: 84.85 | D79: 0.00 | F79: 04/01/2007 04:00:00 | G79: 13.56 | H79: 84.85 | I79: 0 | J79: 4
A80: 04/01/2007 05:00:00 | B80: 13.41 | C80: 84.24 | D80: 0.00 | F80: 04/01/2007 05:00:00 | G80: 13.41 | H80: 84.24 | I80: 0 | J80: 5
A81: 04/01/2007 06:00:00 | B81: 13.37 | C81: 83.68 | D81: 0.00 | F81: 04/01/2007 06:00:00 | G81: 13.37 | H81: 83.68 | I81: 0 | J81: 6
A82: 04/01/2007 07:00:00 | B82: 13.33 | C82: 83.11 | D82: 0.00 | F82: 04/01/2007 07:00:00 | G82: 13.33 | H82: 83.11 | I82: 0 | J82: 7
A83: 04/01/2007 08:00:00 | B83: 13.29 | C83: 82.55 | D83: 0.00 | F83: 04/01/2007 08:00:00 | G83: 13.29 | H83: 82.55 | I83: 0 | J83: 8
A84: 04/01/2007 09:00:00 | B84: 13.26 | C84: 81.68 | D84: 76.00 | F84: 04/01/2007 09:00:00 | G84: 13.26 | H84: 81.68 | I84: 76 | J84: 9
A85: 04/01/2007 10:00:00 | B85: 13.22 | C85: 80.81 | D85: 203.00 | F85: 04/01/2007 10:00:00 | G85: 13.22 | H85: 80.81 | I85: 203 | J85: 10
A86: 04/01/2007 11:00:00 | B86: 13.18 | C86: 79.94 | D86: 316.00 | F86: 04/01/2007 11:00:00 | G86: 13.18 | H86: 79.94 | I86: 316 | J86: 11
A87: 04/01/2007 12:00:00 | B87: 13.20 | C87: 79.43 | D87: 300.00 | F87: 04/01/2007 12:00:00 | G87: 13.2 | H87: 79.43 | I87: 300 | J87: 12
A88: 04/01/2007 13:00:00 | B88: 13.22 | C88: 78.92 | D88: 312.00 | F88: 04/01/2007 13:00:00 | G88: 13.22 | H88: 78.92 | I88: 312 | J88: 13
A89: 04/01/2007 14:00:00 | B89: 13.23 | C89: 78.41 | D89: 266.00 | F89: 04/01/2007 14:00:00 | G89: 13.23 | H89: 78.41 | I89: 266 | J89: 14
A90: 04/01/2007 15:00:00 | B90: 13.29 | C90: 79.52 | D90: 205.00 | F90: 04/01/2007 15:00:00 | G90: 13.29 | H90: 79.52 | I90: 205 | J90: 15
A91: 04/01/2007 16:00:00 | B91: 13.36 | C91: 80.64 | D91: 76.00 | F91: 04/01/2007 16:00:00 | G91: 13.36 | H91: 80.64 | I91: 76 | J91: 16
A92: 04/01/2007 17:00:00 | B92: 13.42 | C92: 81.75 | D92: 0.00 | F92: 04/01/2007 17:00:00 | G92: 13.42 | H92: 81.75 | I92: 0 | J92: 17
A93: 04/01/2007 18:00:00 | B93: 13.51 | C93: 83.02 | D93: 0.00 | F93: 04/01/2007 18:00:00 | G93: 13.51 | H93: 83.02 | I93: 0 | J93: 18
A94: 04/01/2007 19:00:00 | B94: 13.61 | C94: 84.30 | D94: 0.00 | F94: 04/01/2007 19:00:00 | G94: 13.61 | H94: 84.3 | I94: 0 | J94: 19
A95: 04/01/2007 20:00:00 | B95: 13.70 | C95: 85.57 | D95: 0.00 | F95: 04/01/2007 20:00:00 | G95: 13.7 | H95: 85.57 | I95: 0 | J95: 20
A96: 04/01/2007 21:00:00 | B96: 13.79 | C96: 87.35 | D96: 0.00 | F96: 04/01/2007 21:00:00 | G96: 13.79 | H96: 87.35 | I96: 0 | J96: 21
A97: 04/01/2007 22:00:00 | B97: 13.88 | C97: 89.13 | D97: 0.00 | F97: 04/01/2007 22:00:00 | G97: 13.88 | H97: 89.13 | I97: 0 | J97: 22
A98: 04/01/2007 23:00:00 | B98: 13.97 | C98: 90.91 | D98: 0.00 | F98: 04/01/2007 23:00:00 | G98: 13.97 | H98: 90.91 | I98: 0 | J98: 23
A99: 05/01/2007 00:00:00 | B99: 14.04 | C99: 90.99 | D99: 0.00 | F99: 05/01/2007 00:00:00 | G99: 14.04 | H99: 90.99 | I99: 0 | J99: 0 | K99: =MIN(G99:G122) -> 13.39 | L99: =MAX(G99:G122) -> 14.2 | M99: =MIN(H99:H122) -> 89.53 | N99: =MAX(H99:H122) -> 93.84 | O99: =AVERAGEIF(I99:I122,"<>0") -> 142.375
A100: 05/01/2007 01:00:00 | B100: 14.12 | C100: 91.06 | D100: 0.00 | F100: 05/01/2007 01:00:00 | G100: 14.12 | H100: 91.06 | I100: 0 | J100: 1
A101: 05/01/2007 02:00:00 | B101: 14.20 | C101: 91.14 | D101: 0.00 | F101: 05/01/2007 02:00:00 | G101: 14.2 | H101: 91.14 | I101: 0 | J101: 2
A102: 05/01/2007 03:00:00 | B102: 14.18 | C102: 90.80 | D102: 0.00 | F102: 05/01/2007 03:00:00 | G102: 14.18 | H102: 90.8 | I102: 0 | J102: 3
A103: 05/01/2007 04:00:00 | B103: 14.15 | C103: 90.46 | D103: 0.00 | F103: 05/01/2007 04:00:00 | G103: 14.15 | H103: 90.46 | I103: 0 | J103: 4
A104: 05/01/2007 05:00:00 | B104: 14.12 | C104: 90.12 | D104: 0.00 | F104: 05/01/2007 05:00:00 | G104: 14.12 | H104: 90.12 | I104: 0 | J104: 5
A105: 05/01/2007 06:00:00 | B105: 14.12 | C105: 89.92 | D105: 0.00 | F105: 05/01/2007 06:00:00 | G105: 14.12 | H105: 89.92 | I105: 0 | J105: 6
A106: 05/01/2007 07:00:00 | B106: 14.13 | C106: 89.73 | D106: 0.00 | F106: 05/01/2007 07:00:00 | G106: 14.13 | H106: 89.73 | I106: 0 | J106: 7
A107: 05/01/2007 08:00:00 | B107: 14.13 | C107: 89.53 | D107: 0.00 | F107: 05/01/2007 08:00:00 | G107: 14.13 | H107: 89.53 | I107: 0 | J107: 8
A108: 05/01/2007 09:00:00 | B108: 14.08 | C108: 89.71 | D108: 47.00 | F108: 05/01/2007 09:00:00 | G108: 14.08 | H108: 89.71 | I108: 47 | J108: 9
A109: 05/01/2007 10:00:00 | B109: 14.02 | C109: 89.88 | D109: 127.00 | F109: 05/01/2007 10:00:00 | G109: 14.02 | H109: 89.88 | I109: 127 | J109: 10
A110: 05/01/2007 11:00:00 | B110: 13.96 | C110: 90.06 | D110: 240.00 | F110: 05/01/2007 11:00:00 | G110: 13.96 | H110: 90.06 | I110: 240 | J110: 11
A111: 05/01/2007 12:00:00 | B111: 13.99 | C111: 90.94 | D111: 305.00 | F111: 05/01/2007 12:00:00 | G111: 13.99 | H111: 90.94 | I111: 305 | J111: 12
A112: 05/01/2007 13:00:00 | B112: 14.02 | C112: 91.83 | D112: 197.00 | F112: 05/01/2007 13:00:00 | G112: 14.02 | H112: 91.83 | I112: 197 | J112: 13
A113: 05/01/2007 14:00:00 | B113: 14.04 | C113: 92.71 | D113: 107.00 | F113: 05/01/2007 14:00:00 | G113: 14.04 | H113: 92.71 | I113: 107 | J113: 14
A114: 05/01/2007 15:00:00 | B114: 13.93 | C114: 92.94 | D114: 67.00 | F114: 05/01/2007 15:00:00 | G114: 13.93 | H114: 92.94 | I114: 67 | J114: 15
A115: 05/01/2007 16:00:00 | B115: 13.81 | C115: 93.18 | D115: 49.00 | F115: 05/01/2007 16:00:00 | G115: 13.81 | H115: 93.18 | I115: 49 | J115: 16
A116: 05/01/2007 17:00:00 | B116: 13.70 | C116: 93.41 | D116: 0.00 | F116: 05/01/2007 17:00:00 | G116: 13.7 | H116: 93.41 | I116: 0 | J116: 17
A117: 05/01/2007 18:00:00 | B117: 13.60 | C117: 93.55 | D117: 0.00 | F117: 05/01/2007 18:00:00 | G117: 13.6 | H117: 93.55 | I117: 0 | J117: 18
A118: 05/01/2007 19:00:00 | B118: 13.50 | C118: 93.70 | D118: 0.00 | F118: 05/01/2007 19:00:00 | G118: 13.5 | H118: 93.7 | I118: 0 | J118: 19
A119: 05/01/2007 20:00:00 | B119: 13.39 | C119: 93.84 | D119: 0.00 | F119: 05/01/2007 20:00:00 | G119: 13.39 | H119: 93.84 | I119: 0 | J119: 20
A120: 05/01/2007 21:00:00 | B120: 13.42 | C120: 93.41 | D120: 0.00 | F120: 05/01/2007 21:00:00 | G120: 13.42 | H120: 93.41 | I120: 0 | J120: 21
A121: 05/01/2007 22:00:00 | B121: 13.45 | C121: 92.97 | D121: 0.00 | F121: 05/01/2007 22:00:00 | G121: 13.45 | H121: 92.97 | I121: 0 | J121: 22
A122: 05/01/2007 23:00:00 | B122: 13.49 | C122: 92.54 | D122: 0.00 | F122: 05/01/2007 23:00:00 | G122: 13.49 | H122: 92.54 | I122: 0 | J122: 23
A123: 06/01/2007 00:00:00 | B123: 13.58 | C123: 91.99 | D123: 0.00 | F123: 06/01/2007 00:00:00 | G123: 13.58 | H123: 91.99 | I123: 0 | J123: 0 | K123: =MIN(G123:G146) -> 11.85 | L123: =MAX(G123:G146) -> 13.89 | M123: =MIN(H123:H146) -> 86.13 | N123: =MAX(H123:H146) -> 91.99 | O123: =AVERAGEIF(I123:I146,"<>0") -> 149
A124: 06/01/2007 01:00:00 | B124: 13.68 | C124: 91.45 | D124: 0.00 | F124: 06/01/2007 01:00:00 | G124: 13.68 | H124: 91.45 | I124: 0 | J124: 1
A125: 06/01/2007 02:00:00 | B125: 13.78 | C125: 90.90 | D125: 0.00 | F125: 06/01/2007 02:00:00 | G125: 13.78 | H125: 90.9 | I125: 0 | J125: 2
A126: 06/01/2007 03:00:00 | B126: 13.80 | C126: 90.87 | D126: 0.00 | F126: 06/01/2007 03:00:00 | G126: 13.8 | H126: 90.87 | I126: 0 | J126: 3
A127: 06/01/2007 04:00:00 | B127: 13.81 | C127: 90.83 | D127: 0.00 | F127: 06/01/2007 04:00:00 | G127: 13.81 | H127: 90.83 | I127: 0 | J127: 4
A128: 06/01/2007 05:00:00 | B128: 13.82 | C128: 90.80 | D128: 0.00 | F128: 06/01/2007 05:00:00 | G128: 13.82 | H128: 90.8 | I128: 0 | J128: 5
A129: 06/01/2007 06:00:00 | B129: 13.84 | C129: 91.05 | D129: 0.00 | F129: 06/01/2007 06:00:00 | G129: 13.84 | H129: 91.05 | I129: 0 | J129: 6
A130: 06/01/2007 07:00:00 | B130: 13.87 | C130: 91.29 | D130: 0.00 | F130: 06/01/2007 07:00:00 | G130: 13.87 | H130: 91.29 | I130: 0 | J130: 7
A131: 06/01/2007 08:00:00 | B131: 13.89 | C131: 91.54 | D131: 0.00 | F131: 06/01/2007 08:00:00 | G131: 13.89 | H131: 91.54 | I131: 0 | J131: 8
A132: 06/01/2007 09:00:00 | B132: 13.78 | C132: 91.04 | D132: 44.00 | F132: =A132 -> 06/01/2007 09:00:00 | G132: =VALUE(B132) -> 13.78 | H132: =VALUE(C132) -> 91.04 | I132: =VALUE(D132) -> 44 | J132: 9
A133: 06/01/2007 10:00:00 | B133: 13.66 | C133: 90.54 | D133: 83.00 | F133: 06/01/2007 10:00:00 | G133: 13.66 | H133: 90.54 | I133: 83 | J133: 10
A134: 06/01/2007 11:00:00 | B134: 13.55 | C134: 90.04 | D134: 73.00 | F134: 06/01/2007 11:00:00 | G134: 13.55 | H134: 90.04 | I134: 73 | J134: 11
A135: 06/01/2007 12:00:00 | B135: 13.45 | C135: 88.74 | D135: 104.00 | F135: 06/01/2007 12:00:00 | G135: 13.45 | H135: 88.74 | I135: 104 | J135: 12
A136: 06/01/2007 13:00:00 | B136: 13.35 | C136: 87.43 | D136: 325.00 | F136: 06/01/2007 13:00:00 | G136: 13.35 | H136: 87.43 | I136: 325 | J136: 13
A137: 06/01/2007 14:00:00 | B137: 13.25 | C137: 86.13 | D137: 308.00 | F137: 06/01/2007 14:00:00 | G137: 13.25 | H137: 86.13 | I137: 308 | J137: 14
A138: 06/01/2007 15:00:00 | B138: 13.00 | C138: 87.20 | D138: 207.00 | F138: 06/01/2007 15:00:00 | G138: 13 | H138: 87.2 | I138: 207 | J138: 15
A139: 06/01/2007 16:00:00 | B139: 12.76 | C139: 88.27 | D139: 48.00 | F139: 06/01/2007 16:00:00 | G139: 12.76 | H139: 88.27 | I139: 48 | J139: 16
A140: 06/01/2007 17:00:00 | B140: 12.51 | C140: 89.34 | D140: 0.00 | F140: 06/01/2007 17:00:00 | G140: 12.51 | H140: 89.34 | I140: 0 | J140: 17
A141: 06/01/2007 18:00:00 | B141: 12.33 | C141: 89.50 | D141: 0.00 | F141: 06/01/2007 18:00:00 | G141: 12.33 | H141: 89.5 | I141: 0 | J141: 18
A142: 06/01/2007 19:00:00 | B142: 12.15 | C142: 89.65 | D142: 0.00 | F142: 06/01/2007 19:00:00 | G142: 12.15 | H142: 89.65 | I142: 0 | J142: 19
A143: 06/01/2007 20:00:00 | B143: 11.97 | C143: 89.81 | D143: 0.00 | F143: 06/01/2007 20:00:00 | G143: 11.97 | H143: 89.81 | I143: 0 | J143: 20
A144: 06/01/2007 21:00:00 | B144: 11.93 | C144: 89.53 | D144: 0.00 | F144: 06/01/2007 21:00:00 | G144: 11.93 | H144: 89.53 | I144: 0 | J144: 21
A145: 06/01/2007 22:00:00 | B145: 11.89 | C145: 89.24 | D145: 0.00 | F145: 06/01/2007 22:00:00 | G145: 11.89 | H145: 89.24 | I145: 0 | J145: 22
A146: 06/01/2007 23:00:00 | B146: 11.85 | C146: 88.96 | D146: 0.00 | F146: 06/01/2007 23:00:00 | G146: 11.85 | H146: 88.96 | I146: 0 | J146: 23
A147: 07/01/2007 00:00:00 | B147: 11.84 | C147: 87.52 | D147: 0.00 | F147: 07/01/2007 00:00:00 | G147: 11.84 | H147: 87.52 | I147: 0 | J147: 0 | K147: =MIN(G147:G170) -> 11.71 | L147: =MAX(G147:G170) -> 14.14 | M147: =MIN(H147:H170) -> 78.87 | N147: =MAX(H147:H170) -> 87.52 | O147: =AVERAGEIF(I147:I170,"<>0") -> 107.25
A148: 07/01/2007 01:00:00 | B148: 11.84 | C148: 86.08 | D148: 0.00 | F148: 07/01/2007 01:00:00 | G148: 11.84 | H148: 86.08 | I148: 0 | J148: 1
A149: 07/01/2007 02:00:00 | B149: 11.83 | C149: 84.64 | D149: 0.00 | F149: 07/01/2007 02:00:00 | G149: 11.83 | H149: 84.64 | I149: 0 | J149: 2
A150: 07/01/2007 03:00:00 | B150: 11.79 | C150: 83.83 | D150: 0.00 | F150: 07/01/2007 03:00:00 | G150: 11.79 | H150: 83.83 | I150: 0 | J150: 3
A151: 07/01/2007 04:00:00 | B151: 11.75 | C151: 83.03 | D151: 0.00 | F151: 07/01/2007 04:00:00 | G151: 11.75 | H151: 83.03 | I151: 0 | J151: 4
A152: 07/01/2007 05:00:00 | B152: 11.71 | C152: 82.22 | D152: 0.00 | F152: 07/01/2007 05:00:00 | G152: 11.71 | H152: 82.22 | I152: 0 | J152: 5
A153: 07/01/2007 06:00:00 | B153: 11.81 | C153: 81.14 | D153: 0.00 | F153: 07/01/2007 06:00:00 | G153: 11.81 | H153: 81.14 | I153: 0 | J153: 6
A154: 07/01/2007 07:00:00 | B154: 11.91 | C154: 80.05 | D154: 0.00 | F154: 07/01/2007 07:00:00 | G154: 11.91 | H154: 80.05 | I154: 0 | J154: 7
A155: 07/01/2007 08:00:00 | B155: 12.00 | C155: 78.97 | D155: 0.00 | F155: 07/01/2007 08:00:00 | G155: 12 | H155: 78.97 | I155: 0 | J155: 8
A156: 07/01/2007 09:00:00 | B156: 12.21 | C156: 78.94 | D156: 18.00 | F156: 07/01/2007 09:00:00 | G156: 12.21 | H156: 78.94 | I156: 18 | J156: 9
A157: 07/01/2007 10:00:00 | B157: 12.41 | C157: 78.90 | D157: 120.00 | F157: 07/01/2007 10:00:00 | G157: 12.41 | H157: 78.9 | I157: 120 | J157: 10
A158: 07/01/2007 11:00:00 | B158: 12.61 | C158: 78.87 | D158: 153.00 | F158: 07/01/2007 11:00:00 | G158: 12.61 | H158: 78.87 | I158: 153 | J158: 11
A159: 07/01/2007 12:00:00 | B159: 12.76 | C159: 79.62 | D159: 262.00 | F159: 07/01/2007 12:00:00 | G159: 12.76 | H159: 79.62 | I159: 262 | J159: 12
A160: 07/01/2007 13:00:00 | B160: 12.91 | C160: 80.37 | D160: 146.00 | F160: 07/01/2007 13:00:00 | G160: 12.91 | H160: 80.37 | I160: 146 | J160: 13
A161: 07/01/2007 14:00:00 | B161: 13.05 | C161: 81.12 | D161: 91.00 | F161: 07/01/2007 14:00:00 | G161: 13.05 | H161: 81.12 | I161: 91 | J161: 14
A162: 07/01/2007 15:00:00 | B162: 13.23 | C162: 82.89 | D162: 57.00 | F162: 07/01/2007 15:00:00 | G162: 13.23 | H162: 82.89 | I162: 57 | J162: 15
A163: 07/01/2007 16:00:00 | B163: 13.40 | C163: 84.66 | D163: 11.00 | F163: 07/01/2007 16:00:00 | G163: 13.4 | H163: 84.66 | I163: 11 | J163: 16
A164: 07/01/2007 17:00:00 | B164: 13.58 | C164: 86.43 | D164: 0.00 | F164: 07/01/2007 17:00:00 | G164: 13.58 | H164: 86.43 | I164: 0 | J164: 17
A165: 07/01/2007 18:00:00 | B165: 13.70 | C165: 86.04 | D165: 0.00 | F165: 07/01/2007 18:00:00 | G165: 13.7 | H165: 86.04 | I165: 0 | J165: 18
A166: 07/01/2007 19:00:00 | B166: 13.82 | C166: 85.66 | D166: 0.00 | F166: 07/01/2007 19:00:00 | G166: 13.82 | H166: 85.66 | I166: 0 | J166: 19
A167: 07/01/2007 20:00:00 | B167: 13.94 | C167: 85.27 | D167: 0.00 | F167: 07/01/2007 20:00:00 | G167: 13.94 | H167: 85.27 | I167: 0 | J167: 20
A168: 07/01/2007 21:00:00 | B168: 14.01 | C168: 85.00 | D168: 0.00 | F168: 07/01/2007 21:00:00 | G168: 14.01 | H168: 85 | I168: 0 | J168: 21
A169: 07/01/2007 22:00:00 | B169: 14.07 | C169: 84.72 | D169: 0.00 | F169: 07/01/2007 22:00:00 | G169: 14.07 | H169: 84.72 | I169: 0 | J169: 22
A170: 07/01/2007 23:00:00 | B170: 14.14 | C170: 84.45 | D170: 0.00 | F170: 07/01/2007 23:00:00 | G170: 14.14 | H170: 84.45 | I170: 0 | J170: 23
A171: 08/01/2007 00:00:00 | B171: 14.23 | C171: 84.86 | D171: 0.00 | F171: 08/01/2007 00:00:00 | G171: 14.23 | H171: 84.86 | I171: 0 | J171: 0 | K171: =MIN(G171:G194) -> 13.94 | L171: =MAX(G171:G194) -> 14.45 | M171: =MIN(H171:H194) -> 84.86 | N171: =MAX(H171:H194) -> 90.07 | O171: =AVERAGEIF(I171:I194,"<>0") -> 91.75
A172: 08/01/2007 01:00:00 | B172: 14.32 | C172: 85.28 | D172: 0.00 | F172: 08/01/2007 01:00:00 | G172: 14.32 | H172: 85.28 | I172: 0 | J172: 1
A173: 08/01/2007 02:00:00 | B173: 14.41 | C173: 85.69 | D173: 0.00 | F173: 08/01/2007 02:00:00 | G173: 14.41 | H173: 85.69 | I173: 0 | J173: 2
A174: 08/01/2007 03:00:00 | B174: 14.43 | C174: 86.88 | D174: 0.00 | F174: 08/01/2007 03:00:00 | G174: 14.43 | H174: 86.88 | I174: 0 | J174: 3
A175: 08/01/2007 04:00:00 | B175: 14.44 | C175: 88.07 | D175: 0.00 | F175: 08/01/2007 04:00:00 | G175: 14.44 | H175: 88.07 | I175: 0 | J175: 4
A176: 08/01/2007 05:00:00 | B176: 14.45 | C176: 89.26 | D176: 0.00 | F176: 08/01/2007 05:00:00 | G176: 14.45 | H176: 89.26 | I176: 0 | J176: 5
A177: 08/01/2007 06:00:00 | B177: 14.39 | C177: 89.53 | D177: 0.00 | F177: 08/01/2007 06:00:00 | G177: 14.39 | H177: 89.53 | I177: 0 | J177: 6
A178: 08/01/2007 07:00:00 | B178: 14.33 | C178: 89.80 | D178: 0.00 | F178: 08/01/2007 07:00:00 | G178: 14.33 | H178: 89.8 | I178: 0 | J178: 7
A179: 08/01/2007 08:00:00 | B179: 14.26 | C179: 90.07 | D179: 0.00 | F179: 08/01/2007 08:00:00 | G179: 14.26 | H179: 90.07 | I179: 0 | J179: 8
A180: 08/01/2007 09:00:00 | B180: 14.21 | C180: 90.07 | D180: 18.00 | F180: 08/01/2007 09:00:00 | G180: 14.21 | H180: 90.07 | I180: 18 | J180: 9
A181: 08/01/2007 10:00:00 | B181: 14.15 | C181: 90.06 | D181: 100.00 | F181: 08/01/2007 10:00:00 | G181: 14.15 | H181: 90.06 | I181: 100 | J181: 10
A182: 08/01/2007 11:00:00 | B182: 14.10 | C182: 90.06 | D182: 144.00 | F182: 08/01/2007 11:00:00 | G182: 14.1 | H182: 90.06 | I182: 144 | J182: 11
A183: 08/01/2007 12:00:00 | B183: 14.05 | C183: 89.82 | D183: 119.00 | F183: 08/01/2007 12:00:00 | G183: 14.05 | H183: 89.82 | I183: 119 | J183: 12
A184: 08/01/2007 13:00:00 | B184: 14.00 | C184: 89.58 | D184: 137.00 | F184: 08/01/2007 13:00:00 | G184: 14 | H184: 89.58 | I184: 137 | J184: 13
A185: 08/01/2007 14:00:00 | B185: 13.94 | C185: 89.34 | D185: 120.00 | F185: 08/01/2007 14:00:00 | G185: 13.94 | H185: 89.34 | I185: 120 | J185: 14
A186: 08/01/2007 15:00:00 | B186: 13.97 | C186: 89.17 | D186: 58.00 | F186: 08/01/2007 15:00:00 | G186: 13.97 | H186: 89.17 | I186: 58 | J186: 15
A187: 08/01/2007 16:00:00 | B187: 14.01 | C187: 88.99 | D187: 38.00 | F187: 08/01/2007 16:00:00 | G187: 14.01 | H187: 88.99 | I187: 38 | J187: 16
A188: 08/01/2007 17:00:00 | B188: 14.04 | C188: 88.82 | D188: 0.00 | F188: 08/01/2007 17:00:00 | G188: 14.04 | H188: 88.82 | I188: 0 | J188: 17
A189: 08/01/2007 18:00:00 | B189: 14.08 | C189: 88.50 | D189: 0.00 | F189: 08/01/2007 18:00:00 | G189: 14.08 | H189: 88.5 | I189: 0 | J189: 18
A190: 08/01/2007 19:00:00 | B190: 14.12 | C190: 88.19 | D190: 0.00 | F190: 08/01/2007 19:00:00 | G190: 14.12 | H190: 88.19 | I190: 0 | J190: 19
A191: 08/01/2007 20:00:00 | B191: 14.16 | C191: 87.87 | D191: 0.00 | F191: 08/01/2007 20:00:00 | G191: 14.16 | H191: 87.87 | I191: 0 | J191: 20
A192: 08/01/2007 21:00:00 | B192: 14.16 | C192: 87.88 | D192: 0.00 | F192: 08/01/2007 21:00:00 | G192: 14.16 | H192: 87.88 | I192: 0 | J192: 21
A193: 08/01/2007 22:00:00 | B193: 14.16 | C193: 87.88 | D193: 0.00 | F193: 08/01/2007 22:00:00 | G193: 14.16 | H193: 87.88 | I193: 0 | J193: 22
A194: 08/01/2007 23:00:00 | B194: 14.17 | C194: 87.89 | D194: 0.00 | F194: 08/01/2007 23:00:00 | G194: 14.17 | H194: 87.89 | I194: 0 | J194: 23
A195: 09/01/2007 00:00:00 | B195: 14.08 | C195: 85.92 | D195: 0.00 | F195: 09/01/2007 00:00:00 | G195: 14.08 | H195: 85.92 | I195: 0 | J195: 0 | K195: =MIN(G195:G218) -> 13.9 | L195: =MAX(G195:G218) -> 14.15 | M195: =MIN(H195:H218) -> 81.88 | N195: =MAX(H195:H218) -> 87.77 | O195: =AVERAGEIF(I195:I218,"<>0") -> 99.875
A196: 09/01/2007 01:00:00 | B196: 13.99 | C196: 83.95 | D196: 0.00 | F196: =A196 -> 09/01/2007 01:00:00 | G196: =VALUE(B196) -> 13.99 | H196: =VALUE(C196) -> 83.95 | I196: =VALUE(D196) -> 0 | J196: 1
A197: 09/01/2007 02:00:00 | B197: 13.90 | C197: 81.98 | D197: 0.00 | F197: 09/01/2007 02:00:00 | G197: 13.9 | H197: 81.98 | I197: 0 | J197: 2
A198: 09/01/2007 03:00:00 | B198: 13.94 | C198: 81.95 | D198: 0.00 | F198: 09/01/2007 03:00:00 | G198: 13.94 | H198: 81.95 | I198: 0 | J198: 3
A199: 09/01/2007 04:00:00 | B199: 13.97 | C199: 81.91 | D199: 0.00 | F199: 09/01/2007 04:00:00 | G199: 13.97 | H199: 81.91 | I199: 0 | J199: 4
A200: 09/01/2007 05:00:00 | B200: 14.01 | C200: 81.88 | D200: 0.00 | F200: 09/01/2007 05:00:00 | G200: 14.01 | H200: 81.88 | I200: 0 | J200: 5
... 8563 more rows

Sheet Country List (hidden)
B2: Afghanistan | C2: AFG
B3: Albania | C3: ALB
B4: Algeria | C4: DZA
B5: American Samoa | C5: ASM
B6: Andorra | C6: AND
B7: Angola | C7: AGO
B8: Anguilla | C8: AIA
B9: Antarctica | C9: ATA
B10: Antigua and Barbuda | C10: ATG
B11: Argentina | C11: ARG
B12: Armenia | C12: ARM
B13: Aruba | C13: ABW
B14: Australia | C14: AUS
B15: Austria | C15: AUT
B16: Azerbaijan | C16: AZE
B17: Bahamas | C17: BHS
B18: Bahrain | C18: BHR
B19: Bangladesh | C19: BGD
B20: Barbados | C20: BRB
B21: Belarus | C21: BLR
B22: Belgium | C22: BEL
B23: Belize | C23: BLZ
B24: Benin | C24: BEN
B25: Bermuda | C25: BMU
B26: Bhutan | C26: BTN
B27: Bolivia | C27: BOL
B28: Bonaire | C28: BES
B29: Bosnia and Herzegovina | C29: BIH
B30: Botswana | C30: BWA
B31: Bouvet Island | C31: BVT
B32: Brazil | C32: BRA
B33: British Indian Ocean Territory | C33: IOT
B34: Brunei Darussalam | C34: BRN
B35: Bulgaria | C35: BGR
B36: Burkina Faso | C36: BFA
B37: Burundi | C37: BDI
B38: Cambodia | C38: KHM
B39: Cameroon | C39: CMR
B40: Canada | C40: CAN
B41: Cape Verde | C41: CPV
B42: Cayman Islands | C42: CYM
B43: Central African Republic | C43: CAF
B44: Chad | C44: TCD
B45: Chile | C45: CHL
B46: China | C46: CHN
B47: Christmas Island | C47: CXR
B48: Cocos (Keeling) Islands | C48: CCK
B49: Colombia | C49: COL
B50: Comoros | C50: COM
B51: Congo | C51: COG
B52: Democratic Republic of the Congo | C52: COD
B53: Cook Islands | C53: COK
B54: Costa Rica | C54: CRI
B55: Croatia | C55: HRV
B56: Cuba | C56: CUB
B57: Curaçao | C57: CUW
B58: Cyprus | C58: CYP
B59: Czech Republic | C59: CZE
B60: Côte d'Ivoire | C60: CIV
B61: Denmark | C61: DNK
B62: Djibouti | C62: DJI
B63: Dominica | C63: DMA
B64: Dominican Republic | C64: DOM
B65: Ecuador | C65: ECU
B66: Egypt | C66: EGY
B67: El Salvador | C67: SLV
B68: Equatorial Guinea | C68: GNQ
B69: Eritrea | C69: ERI
B70: Estonia | C70: EST
B71: Ethiopia | C71: ETH
B72: Falkland Islands (Malvinas) | C72: FLK
B73: Faroe Islands | C73: FRO
B74: Fiji | C74: FJI
B75: Finland | C75: FIN
B76: France | C76: FRA
B77: French Guiana | C77: GUF
B78: French Polynesia | C78: PYF
B79: French Southern Territories | C79: ATF
B80: Gabon | C80: GAB
B81: Gambia | C81: GMB
B82: Georgia | C82: GEO
B83: Germany | C83: DEU
B84: Ghana | C84: GHA
B85: Gibraltar | C85: GIB
B86: Greece | C86: GRC
B87: Greenland | C87: GRL
B88: Grenada | C88: GRD
B89: Guadeloupe | C89: GLP
B90: Guam | C90: GUM
B91: Guatemala | C91: GTM
B92: Guernsey | C92: GGY
B93: Guinea | C93: GIN
B94: Guinea-Bissau | C94: GNB
B95: Guyana | C95: GUY
B96: Haiti | C96: HTI
B97: Heard Island and McDonald Mcdonald Islands | C97: HMD
B98: Holy See (Vatican City State) | C98: VAT
B99: Honduras | C99: HND
B100: Hong Kong | C100: HKG
B101: Hungary | C101: HUN
B102: Iceland | C102: ISL
B103: India | C103: IND
B104: Indonesia | C104: IDN
B105: Iran, Islamic Republic of | C105: IRN
B106: Iraq | C106: IRQ
B107: Ireland | C107: IRL
B108: Isle of Man | C108: IMN
B109: Israel | C109: ISR
B110: Italy | C110: ITA
B111: Jamaica | C111: JAM
B112: Japan | C112: JPN
B113: Jersey | C113: JEY
B114: Jordan | C114: JOR
B115: Kazakhstan | C115: KAZ
B116: Kenya | C116: KEN
B117: Kiribati | C117: KIR
B118: Korea, Democratic People's Republic of | C118: PRK
B119: Korea, Republic of | C119: KOR
B120: Kuwait | C120: KWT
B121: Kyrgyzstan | C121: KGZ
B122: Lao People's Democratic Republic | C122: LAO
B123: Latvia | C123: LVA
B124: Lebanon | C124: LBN
B125: Lesotho | C125: LSO
B126: Liberia | C126: LBR
B127: Libya | C127: LBY
B128: Liechtenstein | C128: LIE
B129: Lithuania | C129: LTU
B130: Luxembourg | C130: LUX
B131: Macao | C131: MAC
B132: Macedonia, the Former Yugoslav Republic of | C132: MKD
B133: Madagascar | C133: MDG
B134: Malawi | C134: MWI
B135: Malaysia | C135: MYS
B136: Maldives | C136: MDV
B137: Mali | C137: MLI
B138: Malta | C138: MLT
B139: Marshall Islands | C139: MHL
B140: Martinique | C140: MTQ
B141: Mauritania | C141: MRT
B142: Mauritius | C142: MUS
B143: Mayotte | C143: MYT
B144: Mexico | C144: MEX
B145: Micronesia, Federated States of | C145: FSM
B146: Moldova, Republic of | C146: MDA
B147: Monaco | C147: MCO
B148: Mongolia | C148: MNG
B149: Montenegro | C149: MNE
B150: Montserrat | C150: MSR
B151: Morocco | C151: MAR
B152: Mozambique | C152: MOZ
B153: Myanmar | C153: MMR
B154: Namibia | C154: NAM
B155: Nauru | C155: NRU
B156: Nepal | C156: NPL
B157: Netherlands | C157: NLD
B158: New Caledonia | C158: NCL
B159: New Zealand | C159: NZL
B160: Nicaragua | C160: NIC
B161: Niger | C161: NER
B162: Nigeria | C162: NGA
B163: Niue | C163: NIU
B164: Norfolk Island | C164: NFK
B165: Northern Mariana Islands | C165: MNP
B166: Norway | C166: NOR
B167: Oman | C167: OMN
B168: Pakistan | C168: PAK
B169: Palau | C169: PLW
B170: Palestine, State of | C170: PSE
B171: Panama | C171: PAN
B172: Papua New Guinea | C172: PNG
B173: Paraguay | C173: PRY
B174: Peru | C174: PER
B175: Philippines | C175: PHL
B176: Pitcairn | C176: PCN
B177: Poland | C177: POL
B178: Portugal | C178: PRT
B179: Puerto Rico | C179: PRI
B180: Qatar | C180: QAT
B181: Romania | C181: ROU
B182: Russian Federation | C182: RUS
B183: Rwanda | C183: RWA
B184: Reunion | C184: REU
B185: Saint Barthalemy | C185: BLM
B186: Saint Helena | C186: SHN
B187: Saint Kitts and Nevis | C187: KNA
B188: Saint Lucia | C188: LCA
B189: Saint Martin (French part) | C189: MAF
B190: Saint Pierre and Miquelon | C190: SPM
B191: Saint Vincent and the Grenadines | C191: VCT
B192: Samoa | C192: WSM
B193: San Marino | C193: SMR
B194: Sao Tome and Principe | C194: STP
B195: Saudi Arabia | C195: SAU
B196: Senegal | C196: SEN
B197: Serbia | C197: SRB
B198: Seychelles | C198: SYC
B199: Sierra Leone | C199: SLE
B200: Singapore | C200: SGP
B201: Sint Maarten (Dutch part) | C201: SXM
... 49 more rows
